Cogmind - Beta 13 @@@ ROGUE MODE // 2024.04.30 @ 12:22:50 Player: szymekc Result: Establishing Free Derelict Territories! Performance ------------- Evolutions (9) 4500 Regions Visited (32) 6400 Robots Destroyed (428) 2140 Value Destroyed (19102) 19102 Prototype IDs (95) 1900 Alien Tech Used (1) 200 Bonus (35952) 35952 TOTAL SCORE: 70194 Bonus ------- High Alert Combat Kills 1403 Follower Combat Kills 3584 Entered Garrisons 200 Network Hubs Disabled 600 Aligned with FarCom 300 Met Data Miner 300 Met Imprinter 300 Acquired ECA 300 Met Warlord at Base 500 MAIN.C Attacked Warlord 500 Warlord Defense Kills 240 Built Enhanced Grunts 300 A7 Reached Mainframe 300 Met R17 at Cetus 500 Met R17 at Research 2000 Destroyed MAIN.C Guards 500 Met MAIN.C 5000 Hacked MAIN.C 300 Destroyed MAIN.C Shell 5000 Destroyed MAIN.C 10000 Met Warlord at Command 2000 Win 3000 Friendly Fire -1175 Cogmind --------- Core Integrity 1470/1600 Matter 100/300 Energy 950/950 System Corruption 7% Temperature Cool (24) Movement Immobile (Siege) Location Free Derelict Territories Parts ------- > --- POWER (3) -------- Quantum Reactor Vortex Chain Reactor > --- PROPULSION (6) --- Armored Heavy Treads Armored Heavy Treads Advanced Heavy Siege Treads > --- UTILITY (15) ----- Experimental Power Amplifier Experimental Cooling System Huge Storage Unit Experimental Targeting Computer Experimental Targeting Computer Experimental Core Analyzer Improved Armor Integrity Analyzer Particle Accelerator Quantum Capacitor Experimental Utility Shielding Layered Heavy Armor Plating Graphene Brace Advanced Remote Shield > --- WEAPON (2) ------- Vortex Shotgun Vortex Shotgun > --- INVENTORY (25) --- Quantum Reactor Quantum Reactor Quantum Reactor Armored Heavy Treads Armored Heavy Treads Advanced Heavy Siege Treads Advanced Heat Sink Matter Compressor (250) Advanced Transmission Jammer Advanced Phase Shifter Improved Utility Shielding Experimental EM Disruption Field Antimissile System Long-range Tractor Beam Enhanced Nova Cannon Enhanced Nova Cannon Enhanced Nova Cannon Enhanced Nova Cannon Neutron Missile Launcher Improved Remote Datajack Improved Plasma Cutter Peak State ------------ > --- POWER ------------ Quantum Reactor Vortex Chain Reactor > --- PROPULSION ------- Armored Heavy Treads Armored Heavy Treads Advanced Heavy Siege Treads > --- UTILITY ---------- Experimental Power Amplifier Experimental Cooling System Advanced Coolant Injector Huge Storage Unit Experimental Terrain Scan Processor Experimental Targeting Computer Experimental Core Analyzer Improved Armor Integrity Analyzer Particle Accelerator Quantum Capacitor Advanced Transmission Jammer Experimental Utility Shielding Experimental EM Disruption Field Advanced Remote Shield > --- WEAPON ----------- Enhanced Nova Cannon Enhanced Nova Cannon > --- INVENTORY -------- Quantum Reactor Quantum Reactor Quantum Reactor Armored Heavy Treads Armored Heavy Treads Advanced Heavy Siege Treads Matter Compressor Long-range Terrain Scanner Experimental Targeting Computer Improved Utility Shielding Layered Heavy Armor Plating Graphene Brace Antimissile System Advanced Hacking Suite Long-range Tractor Beam Vortex Shotgun Vortex Shotgun Enhanced Nova Cannon Fusion Bomb Launcher Improved Remote Datajack Improved Plasma Cutter [Rating: 224] Favorites ----------- Power Quantum Reactor Engine Cooled Deuterium Engine Power Core Light Nuclear Core Reactor Quantum Reactor Propulsion Light Treads Treads Light Treads Leg Carbon-fiber Leg Wheel Wheel Hover Unit Antigrav System Utility Huge Storage Unit Device Improved Heat Sink Storage Huge Storage Unit Processor Experimental Terrain Scan Processor Hackware Experimental Hacking Suite Protection Improved Utility Shielding Weapon Heavy Phase Cannon Energy Gun Medium Laser Energy Cannon Heavy Phase Cannon Ballistic Gun Enhanced Autogun Ballistic Cannon Enhanced Gauss Cannon Launcher Heavy Shock Bomb Launcher Special Weapon Improved Remote Datajack Impact Weapon Great Maul Piercing Weapon Makeshift Spear Build | -11 -10 -10 -9 -9 -9 -8 -8 -8 -8 -7 -7 -7 -7 -6 -6 -6 -6 -6 -5 -5 -5 -5 -5 -5 -4 -4 -4 -3 -3 -2 -1 -1 ------- Run | Yrd Mat Min Mat Min Exi Min Mat Gar Mat Fac Low Low Zio Pro Fac Low Low Dat Pro Fac Ext Cet Arc Hub Fac Upp War Pro Res Res Acc Com Slots Evolved 18 | . . . 2 . . . 2 . . 2 . . . . 2 . . . . 2 . . . . 2 . . . 2 2 2 . Power 2 | . . . . . . . . . . 1 . . . . . . . . . . . . . . . . . . 1 . . . Propulsion 4 | . . . 1 . . . 1 . . . . . . . . . . . . 2 . . . . . . . . . . . . Utility 12 | . . . 1 . . . 1 . . 1 . . . . 2 . . . . . . . . . 2 . . . 1 2 2 . Weapon . | . . . . . . . . . . . . . . . . . . . . . . . . . . . . . . . . . Parts Attached 648 | 2 16 8 44 9 1 6 24 32 15 45 20 2 10 10 59 12 14 2 3 25 37 9 8 23 77 8 24 8 22 15 26 32 Power 38 | . 2 2 3 1 . . 1 3 . 5 1 . . 1 2 . . . . 2 2 3 . 1 3 . 4 . 1 1 . . Engine 13 | . 1 1 3 1 . . 1 1 . 1 . . . 1 2 . . . . . 1 . . . . . . . . . . . Core 12 | . 1 1 . . . . . 2 . 4 1 . . . . . . . . 2 1 . . . . . . . . . . . Reactor 13 | . . . . . . . . . . . . . . . . . . . . . . 3 . 1 3 . 4 . 1 1 . . Propulsion 110 | 2 3 . 19 3 . . 11 10 3 5 3 . 1 . 12 . 2 . . 7 6 1 . 3 9 2 . 1 4 2 1 . Treads 95 | 2 3 . 19 3 . . 11 10 3 5 3 . 1 . 9 . . . . 5 5 1 . . 5 2 . 1 4 2 1 . Leg 1 | . . . . . . . . . . . . . . . . . . . . . 1 . . . . . . . . . . . Wheel 12 | . . . . . . . . . . . . . . . 3 . 2 . . . . . . 3 4 . . . . . . . Hover 2 | . . . . . . . . . . . . . . . . . . . . 2 . . . . . . . . . . . . Flight . | . . . . . . . . . . . . . . . . . . . . . . . . . . . . . . . . . Utility 363 | . 4 2 8 5 1 . 8 4 7 26 13 2 8 5 34 10 12 . 3 11 17 1 6 16 60 5 14 7 16 9 22 27 Device 229 | . 1 2 . 2 . . 1 1 5 12 9 . 3 5 21 8 10 . 3 6 12 1 4 8 44 4 9 7 12 4 16 19 Storage 17 | . 2 . 1 1 1 . 3 . 1 . 1 . . . . . . . . 1 . . . 3 1 1 . . 1 . . . Processor 19 | . . . . . . . . . . 1 1 . 4 . 1 1 . . . . . . . 1 4 . 1 . 1 2 1 1 Hackware 12 | . . . . . . . . . . 5 . . . . 2 . . . . . . . 1 . 1 . . . . . 1 2 Protection 86 | . 1 . 7 2 . . 4 3 1 8 2 2 1 . 10 1 2 . . 4 5 . 1 4 10 . 4 . 2 3 4 5 Artifact . | . . . . . . . . . . . . . . . . . . . . . . . . . . . . . . . . . Weapon 137 | . 7 4 14 . . 6 4 15 5 9 3 . 1 4 11 2 . 2 . 5 12 4 2 3 5 1 6 . 1 3 3 5 Energy Gun 3 | . . . . . . . . . . . . . . . . . . . . . . . . . . . 1 . . . . 2 Energy Cannon 71 | . 2 2 10 . . 4 . 3 1 2 1 . 1 2 10 1 . 2 . 5 8 . 2 2 4 1 3 . 1 . 3 1 Ballistic Gun 16 | . 5 2 . . . . 3 6 . . . . . . . . . . . . . . . . . . . . . . . . Ballistic Cannon 10 | . . . . . . . . 1 2 4 . . . 1 . 1 . . . . . . . 1 . . . . . . . . Launcher 21 | . . . 3 . . 2 1 2 2 . 1 . . 1 1 . . . . . . 3 . . 1 . 1 . . 3 . . Special Weapon 7 | . . . . . . . . . . . . . . . . . . . . . 4 . . . . . 1 . . . . 2 Impact Weapon 8 | . . . 1 . . . . 3 . 3 . . . . . . . . . . . 1 . . . . . . . . . . Slashing Weapon . | . . . . . . . . . . . . . . . . . . . . . . . . . . . . . . . . . Piercing Weapon 1 | . . . . . . . . . . . 1 . . . . . . . . . . . . . . . . . . . . . Special Melee Weapon . | . . . . . . . . . . . . . . . . . . . . . . . . . . . . . . . . . Unidentified Prototypes 36 | . . . 1 1 . . 1 . . 3 1 . 3 . 3 . 1 . . . . 1 1 4 2 1 2 . 5 3 2 1 Corrupted Parts 6 | . . . . . . . . 1 . . . . . . . . . . . . . . . 4 . . 1 . . . . . System Corruption 34 | . . . . . . . . 9 . . . . . . . . . . . . . . . 16 . . 9 . . . . . Parts Lost 34 | . 1 . . 1 . . . 6 . 4 1 . 1 . 3 . 1 . . 3 . . . 8 2 1 . . . . 2 . Power 3 | . 1 . . . . . . . . 1 . . . . . . . . . 1 . . . . . . . . . . . . Propulsion 10 | . . . . . . . . 2 . 1 1 . . . . . 1 . . 2 . . . 3 . . . . . . . . Utility 16 | . . . . 1 . . . 4 . 1 . . 1 . 2 . . . . . . . . 3 2 . . . . . 2 . Weapon 5 | . . . . . . . . . . 1 . . . . 1 . . . . . . . . 2 . 1 . . . . . . Highest Loss Streak 6 | . 1 . . 1 . . . 4 . 2 1 . 1 . 2 . 1 . . 2 . . . 6 1 1 . . . . 1 . To Critical Strikes . | . . . . . . . . . . . . . . . . . . . . . . . . . . . . . . . . . Average Slot Usage (%) 92 | . 98 100 99 95 77 94 99 99 99 99 99 100 99 99 93 93 92 82 93 86 92 92 87 85 86 79 79 80 76 78 79 76 Engine 5 | . 3 2 6 11 11 11 9 1 . 5 7 7 7 11 11 12 12 12 12 6 2 . . . . . . . . . . . Core 3 | . 10 11 4 . . . . 7 9 8 7 7 7 2 . . . . . 3 8 8 . . . . . . . . . . Reactor 2 | . . . . . . . . . . . . . . . . . . . . . . 2 11 11 9 10 10 10 8 8 7 7 Treads 24 | . 27 28 32 33 33 33 36 35 36 29 28 28 28 28 23 25 18 12 12 15 28 31 27 21 11 14 15 15 13 11 11 11 Wheel 1 | . . . . . . . . . . . . . . . . . 5 12 12 5 . . . . 6 . . . . . . . Device 15 | . 3 11 11 6 11 11 17 8 17 14 19 21 15 14 17 12 11 12 12 11 11 11 10 11 18 20 21 20 18 24 28 24 Storage 7 | . 14 14 11 11 11 11 9 9 9 7 7 7 7 7 6 6 6 6 6 5 5 5 5 8 5 5 5 5 4 4 3 3 Processor 5 | . . . . . . . . . . . 6 7 7 7 6 6 6 6 6 5 5 5 5 7 11 10 10 10 9 8 13 11 Hackware 2 | . . . . . . . . . . 8 . . . . 2 6 6 6 6 5 5 5 5 5 8 5 5 5 4 4 . 1 Protection 9 | . 9 2 10 11 11 11 9 17 9 7 7 7 11 14 11 12 11 12 12 10 10 11 11 7 4 5 3 5 8 8 6 6 Energy Cannon 9 | . 10 23 20 22 . 15 . 4 8 5 6 7 6 6 11 11 12 1 12 11 8 . 10 10 9 9 9 10 9 7 6 6 Ballistic Gun 1 | . 12 4 . . . . 17 7 . . . . . . . . . . . . . . . . . . . . . . . . Naked Turns . | . . . . . . . . . . . . . . . . . . . . . . . . . . . . . . . . . Heaviest Build 212 | 11 34 34 41 61 61 61 100 119 121 138 126 117 123 127 163 162 162 158 162 161 171 177 180 179 165 144 161 160 183 187 193 212 Greatest Support 235 | 40 40 40 66 60 60 60 80 94 94 94 94 94 94 94 113 100 100 20 20 70 139 166 166 166 235 230 230 230 215 200 200 200 Greatest Overweight (x) 16 | . . . 6 1 1 1 1 1 1 2 1 1 1 1 16 1 16 7 8 8 2 2 1 8 6 . . . 1 . . 1 Average Overweight (x) 1 | . . . . . . . . 1 1 1 1 1 1 1 2 1 12 7 7 5 1 1 1 1 2 . . . . . . . Largest Inventory Capacity 35 | 8 15 15 15 20 20 20 25 25 25 25 25 25 25 25 25 25 25 25 25 25 25 25 25 25 25 35 25 25 25 25 25 25 Average Capacity 23 | 8 9 15 15 16 20 20 24 25 25 25 25 25 25 25 25 25 25 25 25 25 25 25 25 25 25 25 25 25 25 25 25 25 Most Carried 25 | 6 12 15 15 16 20 20 25 25 25 25 25 25 25 25 25 25 25 25 25 25 25 25 25 25 25 25 25 25 25 25 25 25 Average Carried 22 | 5 8 13 14 15 17 18 24 23 24 23 24 24 24 24 24 24 24 25 25 24 24 24 24 24 24 24 24 25 24 24 24 24 Final Capacity 25 | 8 15 15 15 20 20 20 25 25 25 25 25 25 25 25 25 25 25 25 25 25 25 25 25 25 25 25 25 25 25 25 25 25 Final Carried 25 | 4 12 15 15 16 19 19 25 24 25 25 25 25 25 25 24 25 25 25 25 25 25 25 25 25 25 25 25 25 25 25 25 24 Class Distribution -------------------- 43% | Scavenger-Mutant 36% | Mutant 9% | Skirmisher 5% | Scavenger-Skirmisher 3% | Commander-Mutant Dominant Class ---------------- Mutant | -10/Materials Mutant | -10/Mines Scavenger-Mutant | -9/Materials Scavenger-Mutant | -9/Mines Scavenger-Mutant | -9/Exiles Scavenger-Mutant | -8/Mines Scavenger-Mutant | -8/Materials Scavenger-Mutant | -8/Garrison Mutant | -8/Materials Mutant | -7/Factory Scavenger-Mutant | -7/Lower Caves Scavenger-Mutant | -7/Lower Caves Scavenger-Mutant | -7/Zion Scavenger-Mutant | -6/Proximity Caves Mutant | -6/Factory Mutant | -6/Lower Caves Mutant | -6/Lower Caves Mutant | -6/Data Miner Mutant | -5/Proximity Caves Scavenger-Mutant | -5/Factory Scavenger-Mutant | -5/Extension Scavenger-Mutant | -5/Cetus Scavenger-Mutant | -5/Archives Scavenger-Mutant | -5/Hub_04(d) Scavenger-Skirmisher | -4/Factory Commander-Mutant | -4/Upper Caves Commander-Mutant | -4/Warlord Mutant | -3/Proximity Caves Mutant | -3/Research Skirmisher | -2/Research Skirmisher | -1/Access Mutant | -1/Command Resources | -11 -10 -10 -9 -9 -9 -8 -8 -8 -8 -7 -7 -7 -7 -6 -6 -6 -6 -6 -5 -5 -5 -5 -5 -5 -4 -4 -4 -3 -3 -2 -1 -1 ----------- Run | Yrd Mat Min Mat Min Exi Min Mat Gar Mat Fac Low Low Zio Pro Fac Low Low Dat Pro Fac Ext Cet Arc Hub Fac Upp War Pro Res Res Acc Com Matter Collected 13857 | 220 225 90 512 129 22 92 969 929 538 855 423 57 100 162 474 348 1137 . 209 844 1858 174 107 546 1228 109 581 60 207 97 324 231 Remotely 1905 | . . . . . . . . . . 248 . . . . 50 . . . . 414 542 . . . 253 . 301 . . . . 97 Salvage Created 19674 | . 815 148 1454 548 . 317 1156 1266 730 1033 539 198 . 240 1914 210 272 . 99 1300 581 79 283 1019 1939 182 87 90 97 463 1534 1081 Parts 996 | . 50 12 90 29 . 16 81 72 37 50 14 9 . 5 85 5 10 . 7 49 19 4 21 45 103 4 5 3 4 27 85 55 Haulers Intercepted 15 | . 2 . 5 . . . 6 . 1 . . . . . 1 . . . . . . . . . . . . . . . . . Recyclers Shooed 16 | . 1 . 1 1 . 1 1 . . 1 . . . . 2 . . . . 4 1 . . . 2 . . . . . . 1 Parts Field Recycled . | . . . . . . . . . . . . . . . . . . . . . . . . . . . . . . . . . Retrieved Matter . | . . . . . . . . . . . . . . . . . . . . . . . . . . . . . . . . . Parts Self-Destructed 54 | . . . . . . . . . . . 6 2 2 5 . 5 13 . 7 . . . . . . . . 14 . . . . Prevented 9 | . . . . . . . . . . . . 3 . . . . . . . . . . . . . 3 . 3 . . . . Kills | -11 -10 -10 -9 -9 -9 -8 -8 -8 -8 -7 -7 -7 -7 -6 -6 -6 -6 -6 -5 -5 -5 -5 -5 -5 -4 -4 -4 -3 -3 -2 -1 -1 ------- Run | Yrd Mat Min Mat Min Exi Min Mat Gar Mat Fac Low Low Zio Pro Fac Low Low Dat Pro Fac Ext Cet Arc Hub Fac Upp War Pro Res Res Acc Com Combat Hostiles Destroyed 313 | . 12 5 32 9 . 9 17 33 14 23 9 . . 5 26 4 4 . 4 10 4 1 . 10 37 2 1 1 1 7 17 16 Melee 7 | . . . . . . . . 1 . 6 . . . . . . . . . . . . . . . . . . . . . . Guns 44 | . 10 3 . . . . 17 13 . . . . . . . . . . . . . . . . . . . . . . . 1 Cannons 178 | . 2 2 25 7 . 5 . 3 9 15 4 . . 1 21 4 3 . 4 10 2 . . 9 22 . . . . 2 14 14 AOE 45 | . . . 7 2 . 3 . 11 3 . 3 . . 2 . . . . . . . . . . 11 . . . . 3 . . Classes Destroyed 26 | . 7 1 2 1 . . 2 3 . 1 3 . . . . . . . . 1 . . . . 1 1 1 . . 2 . . Worker 19 | . . . . . . . 1 . 1 1 . . . . 5 . . . . 3 . . . 6 1 . . . . 1 . . Builder 12 | . 1 . . . . . 1 . 2 . . . . . 1 . . . . . . . . 3 4 . . . . . . . Tunneler 4 | . 1 . 1 1 . . . . . . . . . . . . . . . . . . . 1 . . . . . . . . Hauler 15 | . 2 . 5 . . . 6 . 1 . . . . . 1 . . . . . . . . . . . . . . . . . Recycler 14 | . 1 . . 1 . . . . 1 1 . . . . 1 . . . . 4 2 . . 1 1 . . . . . 1 . Minesweeper 2 | . . . . . . . . . . . 1 . . . . 1 . . . . . . . . . . . . . . . . Mechanic 1 | . . . . . . . . . . . . . . . . . . . . 1 . . . . . . . . . . . . Operator 16 | . 2 . 2 . . . 2 . . . . . . . 1 . . . . . . . 9 . . . . . . . . . Watcher 28 | . 3 . 5 . . . 4 . 1 1 . . . . 1 . . . . 2 2 . . . 3 . . . . 1 4 1 Swarmer 52 | . . 3 10 . . 4 4 4 . 3 . . . . 1 3 . . 4 . . . . . 12 . . . . 4 . . Grunt 110 | . 12 2 12 6 . 5 8 13 13 8 4 . . 2 7 1 3 . . 1 2 . . 2 1 . . . . . 4 4 Brawler 7 | . . . . 1 . . . 2 . . 2 . . . 1 . . . . . . . . . 1 . . . . . . . Duelist 4 | . . . 1 1 . . . . . . 1 . . . 1 . . . . . . . . . . . . . . . . . Protector 1 | . . . . . . . . . . . . . . . . . . . . . . . . . 1 . . . . . . . Sentry 40 | . . . 9 1 . . 4 8 1 4 1 . . 1 1 . 1 . . 1 1 . . 1 3 1 . 1 1 . . . Demolisher 2 | . . . . . . . . 1 . . . . . . . . . . . . . . . . . . . . . 1 . . Specialist 1 | . . . . . . . . 1 . . . . . . . . . . . . . . . . . . . . . . . . Hunter 24 | . . . . . . . 1 1 . 1 . . . 1 6 . . . . 2 1 . . 1 8 . . . . . . 2 Programmer 53 | . . . . . . . . 3 . 6 . . . 1 7 . . . . 6 . . . . 11 . . . . . 12 7 Heavy 4 | . . . . . . . . . . 1 . . . . 2 . . . . . . . . . . . . . . . 1 . Behemoth 1 | . . . . . . . . . . . . . . . . . . . . . . . . . . . . . . 1 . . Cetus Guard 1 | . . . . . . . . . . . . . . . . . . . . . . 1 . . . . . . . . . . Enhanced Grunt 1 | . . . . . . . . . . . . . . . . . . . . . . . . 1 . . . . . . . . Lightning 6 | . . . . . . . . . . . . . . . . . . . . . . . . 6 . . . . . . . . Combat Programmer 2 | . . . . . . . . . . . . . . . . . . . . . . . . . . . . . . . . 2 Striker 1 | . . . . . . . . . . . . . . . . . . . . . . . . . . . . . . 1 . . Executioner 1 | . . . . . . . . . . . . . . . . . . . . . . . . . . . 1 . . . . . Packrat 2 | . . . . . . . . . . . 2 . . . . . . . . . . . . . . . . . . . . . Samaritan 6 | . . . . . . . . . . . 1 4 . . . 1 . . . . . . . . . . . . . . . . Thief 1 | . . . . . . . . . . . 1 . . . . . . . . . . . . . . . . . . . . . Thug 2 | . . . . 1 . . . 1 . . . . . . . . . . . . . . . . . . . . . . . . Wizard 1 | . . . . . . . . . . . . . . . . . . . . . . . . . . . . . . . . 1 Mutant 1 | . . . . . . . . . . . . . . . . . . . . . . . . . . 1 . . . . . . Best Kill Streak 10 | . 3 3 6 4 . 4 4 7 4 3 4 . . 3 6 3 3 . 4 3 2 1 2 5 10 1 1 1 1 6 4 3 Combat Bots Only 10 | . 3 3 3 3 . 4 4 7 4 3 4 . . 3 4 3 3 . 4 2 1 1 . 2 10 1 1 1 1 6 4 3 Max Kills in Single Turn 5 | . 1 1 3 3 . 3 1 3 2 1 2 1 . 1 2 1 1 . 1 1 1 1 1 5 4 1 1 1 1 3 1 1 Gunslinging . | . . . . . . . . . . . . . . . . . . . . . . . . . . . . . . . . . Exploded 3 | . . . 2 2 . 3 . 3 2 . 2 . . 1 . . . . . . . . . . 3 . . . . 3 . . Melee 1 | . . . . . . . . 1 . 1 . . . . . . . . . . . . . . . . . . . . . . Uniques/NPCs Destroyed 1 | . . . . . . . . . . . . . . . . . . . . . . . . . . . . . . . . 1 MAIN.C (-1/Command) Combat | -11 -10 -10 -9 -9 -9 -8 -8 -8 -8 -7 -7 -7 -7 -6 -6 -6 -6 -6 -5 -5 -5 -5 -5 -5 -4 -4 -4 -3 -3 -2 -1 -1 -------- Run | Yrd Mat Min Mat Min Exi Min Mat Gar Mat Fac Low Low Zio Pro Fac Low Low Dat Pro Fac Ext Cet Arc Hub Fac Upp War Pro Res Res Acc Com Hostile Shots Fired 1873 | . 62 26 115 23 . 18 73 131 57 238 35 . . 54 295 13 53 . 47 74 54 4 . 101 222 6 14 10 6 7 46 89 Missed 530 | . 15 10 37 7 . 7 22 32 17 70 12 . . 17 92 2 22 . 14 22 14 1 . 20 59 1 2 5 . 2 8 20 Intercepted 6 | . . . . . . . . . . . . . . . . . . . . . . . . . . . . . . . . 6 Damage Taken 20871 | . 596 152 981 224 . 167 737 1580 510 1671 416 . . 484 2390 78 284 . 211 937 519 44 62 3340 2273 37 212 22 355 158 705 1726 Core 1434 | . 128 . 81 70 . 33 39 84 53 171 45 . . . 181 . . . 6 62 18 . . 140 170 . . . 23 . 84 46 Absorbed by Shields 3029 | . . . . . . . . 4 193 512 76 . . 140 444 15 98 . 74 25 54 15 . 142 701 . 35 5 25 . 201 270 Reduced by Siege Mode 445 | . . . . . . . . . . . . . . . . . . . . . . . . 22 233 . . . . 17 97 76 Redirected to Shielding 708 | . . . . . . . . 46 45 20 . . . 27 108 . 22 . 3 14 35 . . 79 . . 69 . 19 18 64 139 Ignored by Resistances 3045 | . . . . . . . . 69 . 18 . . . . 1036 70 24 . 216 84 236 34 12 30 536 . . 90 . . 308 282 Regen/Repaired (Parts) 3267 | . 155 . 62 . . . . . . 237 . . . . 430 . . . . 1118 . . . . 1106 . 159 . . . . . Core Remaining (%) 79 | 100 . 48 . . . 54 . . 68 . . . . 69 . . . . 78 . . . . 78 . . . 85 98 100 . 91 Volleys Fired 1511 | . 67 12 108 20 . 13 92 80 60 69 36 . . 21 133 20 22 . 9 64 85 2 28 84 150 10 46 10 11 39 101 119 Largest 2 | . 2 2 2 2 . 2 2 2 2 2 1 . . 1 2 2 2 . 2 2 2 2 2 2 2 1 1 1 1 1 1 2 Hottest 240 | . 120 120 136 136 . 136 50 69 155 155 90 . . 98 188 120 120 . 120 180 180 92 180 180 180 105 105 105 105 105 120 240 Shots Fired 2117 | . 116 24 178 40 . 25 184 119 75 81 37 1 . 21 202 29 35 . 18 103 101 4 54 112 215 12 46 10 11 39 101 124 Gun 380 | . 96 10 . . . . 184 84 . . . . . . . . . . . . . . . . . . . . . . . 6 Cannon 1639 | . 20 14 171 40 . 24 . 19 72 81 33 1 . 17 202 29 35 . 18 103 61 . 54 112 213 12 33 10 11 38 101 115 Launcher 42 | . . . 7 . . 1 . 16 3 . 4 . . 4 . . . . . . . 4 . . 2 . . . . 1 . . Special 56 | . . . . . . . . . . . . . . . . . . . . . 40 . . . . . 13 . . . . 3 Kinetic 446 | . 65 10 . . . . 184 84 26 35 . . . . . . . . . . . . . 42 . . . . . . . . Thermal 1439 | . 51 14 171 40 . 24 . . 46 42 33 1 . 17 184 29 35 . 18 103 43 . 54 70 198 3 18 7 7 27 89 115 Explosive 38 | . . . 7 . . 1 . 16 3 . 4 . . 4 . . . . . . . . . . 2 . . . . 1 . . Electromagnetic 132 | . . . . . . . . 19 . 4 . . . . 18 . . . . . 18 4 . . 15 9 15 3 4 11 12 . Entropic 6 | . . . . . . . . . . . . . . . . . . . . . . . . . . . . . . . . 6 Robot Hit Streak 45 | . 15 5 12 10 . 14 17 13 12 15 6 . . 10 12 5 13 . 14 8 20 . 9 14 45 10 14 3 7 14 25 20 Robot Miss Streak 6 | . 3 5 4 3 . 1 4 3 3 3 4 . . 1 4 4 1 . 3 6 3 . 3 3 3 1 2 2 . 1 2 5 Penetration Max 2 | . . . . . . . . . . . . . . . . . . . . . . . . 2 . . . . . . . . Secondary Targets 5 | . 1 2 . . . . 1 1 . . . . . . . . . . . . . . . . . . . . . . . . Max Gunslinging Chain 1 | . 1 1 . . . . 1 1 . . . . . . . . . . . . . . . . . . . . . . . . Capacitor 350 | . . . . . . . . . . . . . . . . . . . . . . . . . 31 12 33 10 11 38 101 114 Shots Hit Robots 1315 | . 90 13 102 22 . 20 117 76 49 64 30 5 . 16 114 12 20 . 9 46 69 . 37 65 142 7 24 4 4 27 59 72 Core Hits 633 | . 41 6 49 16 . 14 49 54 24 24 16 4 . 14 53 4 6 . 4 28 12 3 15 42 78 2 4 1 1 12 24 33 Critical Kills 31 | . . . . . . 1 . . 2 2 1 . . 1 3 2 . . . 3 2 . . 10 1 . . . . . 2 1 Critical Parts Destroyed 13 | . . . . . . . . 3 . 2 1 . . . . . . . . . . . . 7 . . . . . . . . Critical Strikes 62 | . 3 . . . . 1 . 4 6 11 2 . . 1 3 2 . . . 3 2 . . 18 1 . . . 1 . 3 1 Burn 3 | . 3 . . . . . . . . . . . . . . . . . . . . . . . . . . . . . . . Meltdown 20 | . . . . . . 1 . . 2 . 1 . . 1 3 2 . . . 3 2 . . 1 1 . . . . . 2 1 Destroy 17 | . . . . . . . . . . . . . . . . . . . . . . . . 17 . . . . . . . . Blast 11 | . . . . . . . . . 4 7 . . . . . . . . . . . . . . . . . . . . . . Corrupt 2 | . . . . . . . . . . . . . . . . . . . . . . . . . . . . . 1 . 1 . Smash 9 | . . . . . . . . 4 . 4 1 . . . . . . . . . . . . . . . . . . . . . Melee Attacks 140 | . . . 2 . . . . 64 . 38 9 5 1 5 . . . . . . . 16 . . . . . . . . . . Impact 127 | . . . 2 . . . . 64 . 38 7 . . . . . . . . . . 16 . . . . . . . . . . Slashing . | . . . . . . . . . . . . . . . . . . . . . . . . . . . . . . . . . Piercing 13 | . . . . . . . . . . . 2 5 1 5 . . . . . . . . . . . . . . . . . . Sneak Attacks 13 | . . . . . . . . 1 . 2 5 5 . . . . . . . . . . . . . . . . . . . . Combat Hostiles 2 | . . . . . . . . 1 . 1 . . . . . . . . . . . . . . . . . . . . . . Follow-up Attacks . | . . . . . . . . . . . . . . . . . . . . . . . . . . . . . . . . . Damage Inflicted 47504 | . 1015 209 2762 655 . 568 2126 3164 2223 2637 1721 270 . 826 4084 349 646 . 254 1724 1292 286 1321 2300 7078 237 455 143 209 1720 3280 3950 Guns 4404 | . 748 37 . . . . 2103 930 . . . . . . . . . . . . . . . . . . . . . . . 586 Cannons 34015 | . 250 157 2128 455 . 368 . 359 1640 1712 800 . . 378 4033 349 646 . 254 1708 1292 . 1321 1909 5317 237 455 143 128 1423 3194 3359 Explosions 6485 | . . . 561 165 . 196 . 1449 517 . 501 . . 354 34 . . . . . . 286 . 381 1744 . . . . 297 . . Melee 2173 | . . . 59 . . . . 426 . 904 420 270 . 94 . . . . . . . . . . . . . . . . . . Ramming 427 | . 17 15 14 35 . 4 23 . 66 21 . . . . 17 . . . . 16 . . . 10 17 . . . 81 . 86 5 Kinetic 5417 | . 419 37 . . . . 2103 930 581 806 . . . . . . . . . . . . . 541 . . . . . . . . Thermal 30291 | . 579 157 2128 620 . 368 . . 1059 799 800 . . 378 3565 349 646 . 254 1708 872 . 1321 1368 6137 . 73 43 . 951 2757 3359 Explosive 4256 | . . . 561 . . 196 . 1449 517 . 501 . . 354 . . . . . . . . . . 381 . . . . 297 . . Electromagnetic 4354 | . . . . . . . . 359 . 107 . . . . 502 . . . . . 420 286 . 381 543 237 382 100 128 472 437 . Impact 1691 | . . . 59 . . . . 426 . 904 302 . . . . . . . . . . . . . . . . . . . . . Slashing . | . . . . . . . . . . . . . . . . . . . . . . . . . . . . . . . . . Piercing 482 | . . . . . . . . . . . 118 270 . 94 . . . . . . . . . . . . . . . . . . Entropic 586 | . . . . . . . . . . . . . . . . . . . . . . . . . . . . . . . . 586 Highest Corruption 55 | . . . 2 2 2 2 . 14 14 1 1 1 1 . 5 5 5 5 5 11 11 11 11 55 3 3 9 . . . 2 7 Average Corruption 5 | . . . 2 2 2 2 . 11 14 1 1 1 1 . 3 5 5 5 5 9 11 11 7 34 2 2 9 . . . 2 2 Corruption Purged 14 | . . . . . . . . . . . . . . . . . . . . . . . 11 . . 3 . . . . . . Corruption Blocked 30 | . . . . . . . . . . . . . . . . . . . . . . . . . . . . . . . . 30 Effects 654 | . . . 1 17 14 16 . 101 61 23 21 15 2 . 20 40 37 3 13 45 56 20 18 37 56 6 . . . . 3 29 Message Errors 162 | . . . 1 2 3 5 . 23 14 4 5 6 1 . 3 8 9 1 5 10 16 4 6 13 16 . . . . . . 7 Matter Fused 159 | . . . . 5 5 1 . 23 15 8 3 5 . . 4 20 7 . 4 7 11 5 3 6 18 2 . . . . 1 6 Heat Flow Errors 82 | . . . . 1 1 3 . 14 6 4 4 1 . . 2 3 6 . . 8 12 1 . 4 3 1 . . . . 1 7 Energy Discharges 78 | . . . . 2 2 3 . 11 9 3 5 2 1 . 2 3 5 . 2 7 6 3 2 . 8 . . . . . . 2 Parts Rejected 3 | . . . . . . . . . 1 . . . . . . . . . . 1 1 . . . . . . . . . . . Parts Fused 5 | . . . . . . . . 1 . . . . . . . . . . . 1 . . 1 1 1 . . . . . . . Data Loss (minor) 68 | . . . . 6 3 2 . 11 4 2 2 . . . . 2 4 2 1 2 4 3 4 3 9 1 . . . . 1 2 Data Loss (major) 26 | . . . . . . . . 4 4 1 1 . . . 2 2 . . . 4 4 2 . 1 . . . . . . . 1 Misfires 34 | . . . . . . 2 . 7 4 1 1 1 . . 6 1 2 . . 2 1 . . 1 . 2 . . . . . 3 Alerts 16 | . . . . 1 . . . 4 . . . . . . . 1 3 . 1 1 1 1 1 1 . . . . . . . 1 Misdirections 2 | . . . . . . . . . 1 . . . . . . . . . . . . 1 . . . . . . . . . . Weapon Failures 19 | . . . . . . . . 3 3 . . . . . 1 . 1 . . 2 . . 1 7 1 . . . . . . . Overload Shots 4 | . . . . . . . . . . . . . . . 4 . . . . . . . . . . . . . . . . . Effects 1 | . . . . . . . . . . . . . . . 1 . . . . . . . . . . . . . . . . . Short Circuit 1 | . . . . . . . . . . . . . . . 1 . . . . . . . . . . . . . . . . . Overflow Damage 2080 | . . . 40 . . 45 . 183 20 297 93 33 . 32 69 30 35 . . . 38 . 162 62 359 . . . 29 47 234 272 Projectiles 1213 | . . . 10 . . . . . 20 49 . . . 32 69 30 35 . . . 38 . 162 10 250 . . . . 47 189 272 Explosions 266 | . . . 30 . . 45 . 27 . . 3 . . . . . . . . . . . . 52 109 . . . . . . . Melee 601 | . . . . . . . . 156 . 248 90 33 . . . . . . . . . . . . . . . . 29 . 45 . Knockbacks 32 | . . . . . . . . . 4 11 . . . . . . . . . . . . . 17 . . . . . . . . Impact 5 | . . . . . . . . . . 5 . . . . . . . . . . . . . . . . . . . . . . Kinetic 24 | . . . . . . . . . 4 6 . . . . . . . . . . . . . 14 . . . . . . . . Secondary 3 | . . . . . . . . . . . . . . . . . . . . . . . . 3 . . . . . . . . Self-Inflicted Damage 576 | . . . 51 49 . . . 29 35 . . . . 41 . . . . . . . 11 . 201 159 . . . . . . . Shots 14 | . . . 2 1 . . . 1 3 . . . . 1 . . . . . . . 1 . 2 3 . . . . . . . Rammed 36 | . 1 1 1 6 . 3 2 . 4 2 . . . . 3 . . . . 1 . . . 1 5 . . . 3 . 2 1 Targets Rammed 41 | . 2 1 1 6 . 3 4 . 5 2 . . . . 3 . . . . 2 . . . 1 5 . . . 3 . 2 1 Kicked . | . . . . . . . . . . . . . . . . . . . . . . . . . . . . . . . . . Crushed 5 | . 1 . . . . . 2 . 1 . . . . . . . . . . 1 . . . . . . . . . . . . Highest Temperature 403 | . 303 234 291 258 133 244 17 248 300 383 300 185 . 204 234 263 259 . . 294 264 214 337 403 384 232 364 156 216 185 290 384 Average Temperature 91 | . 67 59 78 91 73 85 5 57 103 100 122 74 . 67 48 56 65 . . 86 80 110 111 127 112 110 117 60 68 89 92 115 Received Heat Transfer 3549 | . 390 42 291 96 . 81 333 294 286 460 106 . . 47 294 . 106 . . 54 108 . . 135 151 20 56 . 14 9 59 117 Effects 14 | . . . . 1 . . . . . 1 . . . . . . 1 . . . . . . 6 1 . 3 . . . . 1 Shutdowns 5 | . . . . . . . . . . 1 . . . . . . . . . . . . . 4 . . . . . . . . Energy Bleed 3 | . . . . 1 . . . . . . . . . . . . . . . . . . . 1 . . 1 . . . . . Interference 5 | . . . . . . . . . . . . . . . . . 1 . . . . . . . 1 . 2 . . . . 1 Short Circuit 1 | . . . . . . . . . . . . . . . . . . . . . . . . 1 . . . . . . . . Siege Activations 29 | . . . . . . . . . . . . . . . . . . . . . . . . 2 11 . 1 . . 2 6 7 Total Turns 449 | . . . . . . . . . . . . . . . . . . . . . . . . 90 226 . 14 . . 12 49 58 Longest Duration 84 | . . . . . . . . . . . . . . . . . . . . . . . . 84 59 . 14 . . 8 18 19 Robots Corrupted 18 | . . . . . . . . 1 . . . . . . 2 . . . . . 1 1 . . 3 2 1 1 1 3 2 . Combat Hostiles 16 | . . . . . . . . 1 . . . . . . 2 . . . . . 1 1 . . 3 2 1 1 1 2 1 . Parts Fried 41 | . . . . . . . . 4 . 2 2 . . . 1 . . . . . 4 . . 4 5 4 2 . 3 2 8 . Impact Corruptions 24 | . . . . . . . . 6 . 9 5 . . . . . . . . . . . . . . . . . 3 . 1 . Robots Melted 22 | . . . . . . 1 . . 2 . 1 . . 2 3 2 1 . . 3 2 . . 1 1 . . . . . 2 1 Combat Hostiles 16 | . . . . . . 1 . . 2 . 1 . . 2 3 . 1 . . . 1 . . 1 1 . . . . . 2 1 Parts Melted 83 | . 1 1 9 1 . 4 . . 3 1 2 . . 2 13 1 1 . . 8 5 . 4 3 4 . . . . . 13 7 Heat Transferred 30665 | . 1655 333 3774 964 . 666 . . 1316 968 851 . . 550 4971 522 957 . 359 1804 925 . 1443 1111 2954 . 74 37 . 666 1739 2026 Parts Sabotaged 2 | . . . . . . . . . . . . . . . 2 . . . . . . . . . . . . . . . . . Parts Stolen . | . . . . . . . . . . . . . . . . . . . . . . . . . . . . . . . . . Parts Stripped . | . . . . . . . . . . . . . . . . . . . . . . . . . . . . . . . . . Power Chain Reactions 6 | . . . . . . . . . . . . . . . 1 . . . . . . . . . 5 . . . . . . . Alert | -11 -10 -10 -9 -9 -9 -8 -8 -8 -8 -7 -7 -7 -7 -6 -6 -6 -6 -6 -5 -5 -5 -5 -5 -5 -4 -4 -4 -3 -3 -2 -1 -1 ------- Run | Yrd Mat Min Mat Min Exi Min Mat Gar Mat Fac Low Low Zio Pro Fac Low Low Dat Pro Fac Ext Cet Arc Hub Fac Upp War Pro Res Res Acc Com Peak Influence 1876 | . 166 135 389 382 . 101 191 1876 1129 518 . . . . 357 . . . . 233 487 471 323 704 969 . . . 75 197 303 378 Initial 914 | . . . . 126 . . 39 120 914 426 . . . . . . . . . . 84 184 108 6 344 . . . . 2 117 134 Average 274 | . 59 47 217 165 . 36 89 921 956 272 . . . . 133 . . . . 61 200 313 185 233 459 . . . 21 39 155 224 Maximum Alert Level 5 | . . . 1 1 . . . 5 4 2 . . . . 1 . . . . 1 2 2 1 3 3 . . . . . 1 1 Low Security (%) 54 | 100 100 100 27 68 . 100 100 5 . 22 . . . . 71 . . . . 97 53 9 62 50 33 . . . 100 100 68 23 Level 1 26 | . . . 72 31 . . . 17 . 59 . . . . 28 . . . . 2 38 74 37 33 11 . . . . . 31 76 Level 2 6 | . . . . . . . . 14 . 18 . . . . . . . . . . 7 16 . 6 24 . . . . . . . Level 3 9 | . . . . . . . . 29 93 . . . . . . . . . . . . . . 9 29 . . . . . . . Level 4 1 | . . . . . . . . 20 6 . . . . . . . . . . . . . . . . . . . . . . . Level 5 . | . . . . . . . . 12 . . . . . . . . . . . . . . . . . . . . . . . . High Security . | . . . . . . . . . . . . . . . . . . . . . . . . . . . . . . . . . Max Security . | . . . . . . . . . . . . . . . . . . . . . . . . . . . . . . . . . Squads Dispatched 87 | . 3 . 4 1 . . 3 . 4 15 . . . . 15 . . . . 4 3 . . 1 12 . . . 8 1 7 6 Investigation 22 | . 1 . 2 . . . . . 3 3 . . . . 1 . . . . . . . . 1 5 . . . 2 . 2 2 Extermination 27 | . . . . . . . . . . 6 . . . . 6 . . . . 3 . . . . 5 . . . . . 4 3 Reinforcement 30 | . 2 . 2 1 . . 3 . . 3 . . . . 5 . . . . 1 3 . . . 1 . . . 6 1 1 1 Assault 2 | . . . . . . . . . 1 . . . . . . . . . . . . . . . 1 . . . . . . . Garrison 6 | . . . . . . . . . . 3 . . . . 3 . . . . . . . . . . . . . . . . . Intercept . | . . . . . . . . . . . . . . . . . . . . . . . . . . . . . . . . . Searches Triggered . | . . . . . . . . . . . . . . . . . . . . . . . . . . . . . . . . . Construction Impeded 6 | . . . . 1 . . . . . 1 . . . . 2 . . . . . 2 . . . . . . . . . . . Haulers Reinforced 2 | . . . . . . . . . . . . . . . . . . . . 1 . . . . . . . . 1 . . . Active Scanning Responses . | . . . . . . . . . . . . . . . . . . . . . . . . . . . . . . . . . Cargo Convoy Interrupts 1 | . . . . . . . . . . . . . . . 1 . . . . . . . . . . . . . . . . . Stealth | -11 -10 -10 -9 -9 -9 -8 -8 -8 -8 -7 -7 -7 -7 -6 -6 -6 -6 -6 -5 -5 -5 -5 -5 -5 -4 -4 -4 -3 -3 -2 -1 -1 --------- Run | Yrd Mat Min Mat Min Exi Min Mat Gar Mat Fac Low Low Zio Pro Fac Low Low Dat Pro Fac Ext Cet Arc Hub Fac Upp War Pro Res Res Acc Com Distress Signals 36 | . 2 . 2 1 . . 3 . 2 . . . . . 1 . . . . . 4 2 1 . 2 . . . 7 8 . 1 Communications Jammed 139 | . . . . . . . . . . . . . . . 15 . . . . 4 8 . . 22 45 . . . . 26 9 10 Distress Signals 122 | . . . . . . . . . . . . . . . 7 . . . . 4 8 . . 22 45 . . . . 26 . 10 Times Spotted 539 | . 22 6 44 11 . 11 29 40 21 29 9 . . 5 42 6 4 . 4 14 32 9 28 18 53 2 31 3 7 9 21 29 Peak Tracking Total 8 | . 3 3 5 3 . 4 4 5 4 3 4 . . 3 7 3 3 . 4 3 6 5 1 7 5 1 8 2 7 4 4 5 Tactical Retreats 24 | . . 1 1 1 . 1 1 1 2 3 . . . . 4 1 . . . . 3 . . . 3 . . . . 1 . 1 Traps | -11 -10 -10 -9 -9 -9 -8 -8 -8 -8 -7 -7 -7 -7 -6 -6 -6 -6 -6 -5 -5 -5 -5 -5 -5 -4 -4 -4 -3 -3 -2 -1 -1 ------- Run | Yrd Mat Min Mat Min Exi Min Mat Gar Mat Fac Low Low Zio Pro Fac Low Low Dat Pro Fac Ext Cet Arc Hub Fac Upp War Pro Res Res Acc Com Traps Triggered 28 | . 2 . 5 . . . . 7 . 5 . . . . 3 . . . . . 2 . . 1 3 . . . . . . . Indirectly . | . . . . . . . . . . . . . . . . . . . . . . . . . . . . . . . . . Trap Hack Attempts . | . . . . . . . . . . . . . . . . . . . . . . . . . . . . . . . . . Triggered . | . . . . . . . . . . . . . . . . . . . . . . . . . . . . . . . . . Disarmed . | . . . . . . . . . . . . . . . . . . . . . . . . . . . . . . . . . Reprogrammed . | . . . . . . . . . . . . . . . . . . . . . . . . . . . . . . . . . Reused . | . . . . . . . . . . . . . . . . . . . . . . . . . . . . . . . . . Traps Extracted . | . . . . . . . . . . . . . . . . . . . . . . . . . . . . . . . . . Installed . | . . . . . . . . . . . . . . . . . . . . . . . . . . . . . . . . . Triggered 9 | . . . . . . . . . . . 1 1 . . 1 1 . . . . . . . . . . 5 . . . . . Objects Rigged 2 | . . . . . . . . . . 2 . . . . . . . . . . . . . . . . . . . . . . Machines | -11 -10 -10 -9 -9 -9 -8 -8 -8 -8 -7 -7 -7 -7 -6 -6 -6 -6 -6 -5 -5 -5 -5 -5 -5 -4 -4 -4 -3 -3 -2 -1 -1 ---------- Run | Yrd Mat Min Mat Min Exi Min Mat Gar Mat Fac Low Low Zio Pro Fac Low Low Dat Pro Fac Ext Cet Arc Hub Fac Upp War Pro Res Res Acc Com Machines Disabled 39 | . . . 1 3 . . . 7 . 3 . . . . 1 . . . . 2 1 1 2 8 7 1 . . . 1 1 . Max in Single Turn 4 | . . . 1 1 . . . 1 . 1 . . . . 1 . . . . 1 1 1 1 4 3 1 . . . 1 1 . Garrison Access 8 | . . . . . . . . . . . . . . . . . . . . . . . . 1 4 . . . 2 1 . . Garrison Relay 4 | . . . . . . . . 4 . . . . . . . . . . . . . . . . . . . . . . . . Network Hub 3 | . . . . . . . . . . . . . . . . . . . . . . . . 3 . . . . . . . . Machines Repaired . | . . . . . . . . . . . . . . . . . . . . . . . . . . . . . . . . . Machines Dismantled . | . . . . . . . . . . . . . . . . . . . . . . . . . . . . . . . . . Machines Sabotaged 1 | . . . . . . . . . . . . . . . . . . . . . . . . 1 . . . . . . . . Overloaded Fab Kills . | . . . . . . . . . . . . . . . . . . . . . . . . . . . . . . . . . Hacking | -11 -10 -10 -9 -9 -9 -8 -8 -8 -8 -7 -7 -7 -7 -6 -6 -6 -6 -6 -5 -5 -5 -5 -5 -5 -4 -4 -4 -3 -3 -2 -1 -1 --------- Run | Yrd Mat Min Mat Min Exi Min Mat Gar Mat Fac Low Low Zio Pro Fac Low Low Dat Pro Fac Ext Cet Arc Hub Fac Upp War Pro Res Res Acc Com Machines Accessed 132 | . 8 1 15 . 3 . 5 2 6 11 1 1 . . 12 2 . 4 . 5 3 1 . 6 23 1 2 . 8 . 8 4 Terminals 65 | . 5 1 10 . . . 4 2 3 4 . . . . 6 . . . . 2 2 1 . 5 8 . . . 4 . 4 4 Fabricators 10 | . . . . . . . . . . 1 . . . . 2 . . . . . . . . . 4 . . . 1 . 2 . Repair Stations 12 | . 1 . 1 . . . . . 1 3 . . . . 2 . . . . 2 . . . . 2 . . . . . . . Recycling Units 13 | . 2 . 2 . . . . . 1 2 . . . . . . . . . . 1 . . . 3 . . . 1 . 1 . Scanalyzers 10 | . . . 2 . . . . . 1 1 . . . . 2 . . . . 1 . . . . 2 . . . 1 . . . Garrison Access 8 | . . . . . . . 1 . . . . . . . . . . . . . . . . 1 4 . . . 1 . 1 . Total Hacks 442 | . 30 2 42 . 6 . 13 3 20 26 1 1 . . 30 2 . 28 . 21 10 1 . 12 111 1 6 . 39 . 23 14 Successful 234 | . 14 1 22 . 6 . 6 1 8 10 1 1 . . 11 2 . 28 . 18 3 . . 6 51 1 6 . 29 . 6 3 Failed 206 | . 15 1 19 . . . 7 2 12 16 . . . . 19 . . . . 3 7 1 . 6 60 . . . 10 . 17 11 Catastrophic 40 | . 3 1 5 . . . 1 1 1 4 . . . . 3 . . . . . 2 1 . 1 5 . . . 4 . 6 2 Database Lockouts 2 | . 1 . 1 . . . . . . . . . . . . . . . . . . . . . . . . . . . . . Manual 128 | . 15 1 12 . 1 . 8 . 4 . . . . . 12 . . . . . 9 1 . 7 32 . 1 . 11 . 9 5 Terminals 207 | . 17 2 27 . . . 12 3 7 8 . . . . 17 . . . . 3 8 1 . 11 50 . . . 16 . 11 14 Fabricators 27 | . . . . . . . . . . 1 . . . . 2 . . . . . . . . . 15 . . . 2 . 7 . Repair Stations 43 | . 6 . 3 . . . . . 3 10 . . . . 5 . . . . 12 . . . . 4 . . . . . . . Recycling Units 46 | . 7 . 5 . . . . . 3 3 . . . . . . . . . . 2 . . . 16 . . . 6 . 4 . Scanalyzers 59 | . . . 7 . . . . . 7 4 . . . . 6 . . . . 6 . . . . 15 . . . 14 . . . Garrison Access 15 | . . . . . . . 1 . . . . . . . . . . . . . . . . 1 11 . . . 1 . 1 . Terminal Hacks 99 | . 4 1 10 . 6 . 3 1 1 3 1 1 . . 3 2 . 28 . 1 1 . . 2 15 1 6 . 6 . 1 2 Record 17 | . . . . . 5 . . . . . . . . . . 1 . 11 . . . . . . . . . . . . . . Part Schematic 14 | . 1 . . . . . . . . . . . . . . . . 8 . . . . . 1 4 . . . . . . . Robot Schematic 6 | . . . . . . . . . . . . . . . . . . 6 . . . . . . . . . . . . . . Robot Analysis 2 | . . . 2 . . . . . . . . . . . . . . . . . . . . . . . . . . . . . Prototype ID Bank 15 | . 1 . 2 . . . . . 1 1 . . . . . . . 3 . . . . . . 1 . 5 . 1 . . . Open Door 7 | . . . . . . . . . . . 1 1 . . . 1 . . . 1 . . . . . 1 1 . . . . 1 Level Access Points 1 | . . . . . . . . . . . . . . . . . . . . . . . . . . . . . 1 . . . Branch Access Points 2 | . . . . . . . . . . . . . . . 1 . . . . . . . . . 1 . . . . . . . Emergency Access Points 1 | . . . . . . . . 1 . . . . . . . . . . . . . . . . . . . . . . . . Machine Index 2 | . . . . . . . . . . 1 . . . . . . . . . . . . . . . . . . 1 . . . Terminal Index 2 | . . . . . . . . . . . . . . . . . . . . . . . . 1 1 . . . . . . . Fabricator Index 1 | . . . . . . . . . . . . . . . . . . . . . . . . . 1 . . . . . . . Alert Level 3 | . . . 1 . . . . . . . . . . . . . . . . . . . . . 1 . . . 1 . . . Unreport Threat 11 | . . . 2 . . . 1 . . . . . . . 1 . . . . . 1 . . . 4 . . . 1 . 1 . Locate Traps 5 | . 1 . . . . . . . . . . . . . 1 . . . . . . . . . 2 . . . 1 . . . Dispatch Records 1 | . . 1 . . . . . . . . . . . . . . . . . . . . . . . . . . . . . . Transport Status 1 | . . . . . . . 1 . . . . . . . . . . . . . . . . . . . . . . . . . Hauler Manifests 1 | . . . 1 . . . . . . . . . . . . . . . . . . . . . . . . . . . . . Registered Components 2 | . 1 . 1 . . . . . . . . . . . . . . . . . . . . . . . . . . . . . Zone Layout 3 | . . . 1 . . . 1 . . 1 . . . . . . . . . . . . . . . . . . . . . . Derelict Proto ID Bank 1 | . . . . . 1 . . . . . . . . . . . . . . . . . . . . . . . . . . . Disengage Seal 1 | . . . . . . . . . . . . . . . . . . . . . . . . . . . . . . . . 1 Fabricator Hacks 15 | . . . . . . . . . . 1 . . . . 1 . . . . . . . . . 8 . . . 2 . 3 . Network Status 2 | . . . . . . . . . . 1 . . . . 1 . . . . . . . . . . . . . . . . . Load Schematic 7 | . . . . . . . . . . . . . . . . . . . . . . . . . 4 . . . 1 . 2 . Build 6 | . . . . . . . . . . . . . . . . . . . . . . . . . 4 . . . 1 . 1 . Repair Station Hacks 30 | . 4 . 2 . . . . . 1 5 . . . . 3 . . . . 11 . . . . 4 . . . . . . . Scan Component 16 | . 2 . 1 . . . . . 1 3 . . . . 2 . . . . 5 . . . . 2 . . . . . . . Repair 13 | . 2 . 1 . . . . . . 2 . . . . 1 . . . . 5 . . . . 2 . . . . . . . Refit 1 | . . . . . . . . . . . . . . . . . . . . 1 . . . . . . . . . . . . Recycling Unit Hacks 10 | . 2 . 2 . . . . . . . . . . . . . . . . . 1 . . . 3 . . . 1 . 1 . Retrieve Components 10 | . 2 . 2 . . . . . . . . . . . . . . . . . 1 . . . 3 . . . 1 . 1 . Scanalyzer 43 | . . . 7 . . . . . 4 1 . . . . 3 . . . . 6 . . . . 8 . . . 14 . . . Insert Component 23 | . . . 4 . . . . . 2 1 . . . . 2 . . . . 3 . . . . 5 . . . 6 . . . Analyze 20 | . . . 3 . . . . . 2 . . . . . 1 . . . . 3 . . . . 3 . . . 8 . . . Garrison Access Hacks 7 | . . . . . . . 1 . . . . . . . . . . . . . . . . 1 4 . . . 1 . . . Unlock Access 1 | . . . . . . . 1 . . . . . . . . . . . . . . . . . . . . . . . . . Seal Access 6 | . . . . . . . . . . . . . . . . . . . . . . . . 1 4 . . . 1 . . . Unauthorized Hacks 30 | . 4 . 1 . . . 2 . 2 . . . . . 1 . . . . . 1 . . 3 9 . . . 5 . 1 1 Terminals 16 | . 2 . . . . . 2 . 1 . . . . . . . . . . . 1 . . 3 2 . . . 4 . . 1 Track 1 | . . . . . . . . . . . . . . . . . . . . . . . . . . . . . 1 . . . Assimilate 5 | . 1 . . . . . . . . . . . . . . . . . . . 1 . . 1 1 . . . . . . 1 Botnet 7 | . . . . . . . 2 . 1 . . . . . . . . . . . . . . 1 1 . . . 2 . . . Disrupt 1 | . 1 . . . . . . . . . . . . . . . . . . . . . . . . . . . . . . . Operators 1 | . . . . . . . . . . . . . . . . . . . . . . . . . . . . . 1 . . . Sabotage 1 | . . . . . . . . . . . . . . . . . . . . . . . . 1 . . . . . . . . Fabricators 3 | . . . . . . . . . . . . . . . 1 . . . . . . . . . 2 . . . . . . . Prioritize 2 | . . . . . . . . . . . . . . . . . . . . . . . . . 2 . . . . . . . Liberate 1 | . . . . . . . . . . . . . . . 1 . . . . . . . . . . . . . . . . . Repair Stations . | . . . . . . . . . . . . . . . . . . . . . . . . . . . . . . . . . Recycling Units 11 | . 2 . 1 . . . . . 1 . . . . . . . . . . . . . . . 5 . . . 1 . 1 . Monitor 1 | . . . . . . . . . . . . . . . . . . . . . . . . . 1 . . . . . . . Reject 1 | . . . . . . . . . . . . . . . . . . . . . . . . . 1 . . . . . . . Mask 7 | . 2 . . . . . . . . . . . . . . . . . . . . . . . 3 . . . 1 . 1 . Tunnel 2 | . . . 1 . . . . . 1 . . . . . . . . . . . . . . . . . . . . . . . Scanalyzers . | . . . . . . . . . . . . . . . . . . . . . . . . . . . . . . . . . Garrison Access . | . . . . . . . . . . . . . . . . . . . . . . . . . . . . . . . . . Data Cores Recovered . | . . . . . . . . . . . . . . . . . . . . . . . . . . . . . . . . . Used . | . . . . . . . . . . . . . . . . . . . . . . . . . . . . . . . . . Hacking Detections 99 | . 7 1 14 . . . 4 1 5 10 . . . . 12 . . . . 4 3 1 . 4 16 . . . 6 . 8 3 Full Trace Events 17 | . . . 1 . . . . 1 2 3 . . . . 1 . . . . . . . . . 5 . . . 1 . 2 1 Feedback Events 2 | . . . . . . . . . . . . . . . . . . . . . . . . . 1 . . . . . 1 . Corruption 1 | . . . . . . . . . . . . . . . . . . . . . . . . . 1 . . . . . . . Hackware Fried 1 | . . . . . . . . . . . . . . . . . . . . . . . . . . . . . . . 1 . Feedback Blocked . | . . . . . . . . . . . . . . . . . . . . . . . . . . . . . . . . . Robot Schematics Acquired 6 | . . . . . . . . . . . . . . . . . . 6 . . . . . . . . . . . . . . Robots Built . | . . . . . . . . . . . . . . . . . . . . . . . . . . . . . . . . . Authchips . | . . . . . . . . . . . . . . . . . . . . . . . . . . . . . . . . . Time . | . . . . . . . . . . . . . . . . . . . . . . . . . . . . . . . . . Total Robot Build Rating . | . . . . . . . . . . . . . . . . . . . . . . . . . . . . . . . . . Part Schematics Acquired 28 | . 1 . 3 . . . . . . . . . . . 1 . . 8 . 3 . . . 1 7 . . . 4 . . . Parts Built 7 | . . . . . . . . . . . . . . . . . . . . . . . . . 5 . . . 1 . 1 . Authchips . | . . . . . . . . . . . . . . . . . . . . . . . . . . . . . . . . . Time 322 | . . . . . . . . . . . . . . . . . . . . . . . . . 179 . . . 93 . 50 . Total Part Build Rating 48 | . . . . . . . . . . . . . . . . . . . . . . . . . 36 . . . 7 . 5 . Parts Repaired 13 | . 2 . 1 . . . . . . 2 . . . . 1 . . . . 5 . . . . 2 . . . . . . . Time 671 | . 52 . 26 . . . . . . 107 . . . . 56 . . . . 214 . . . . 216 . . . . . . . Parts Recycled . | . . . . . . . . . . . . . . . . . . . . . . . . . . . . . . . . . Recycled Matter . | . . . . . . . . . . . . . . . . . . . . . . . . . . . . . . . . . Retrieved Matter . | . . . . . . . . . . . . . . . . . . . . . . . . . . . . . . . . . Retrieved Components 52 | . 12 . 12 . . . . . . . . . . . . . . . . . 10 . . . 6 . . . 10 . 2 . Parts Scanalyzed 15 | . . . 3 . . . . . 1 . . . . . 1 . . . . 3 . . . . 3 . . . 4 . . . Part Schematics Acquired 14 | . . . 3 . . . . . . . . . . . 1 . . . . 3 . . . . 3 . . . 4 . . . Parts Damaged 4 | . . . . . . . . . 1 . . . . . . . . . . . . . . . 2 . . . 1 . . . Bothacking | -11 -10 -10 -9 -9 -9 -8 -8 -8 -8 -7 -7 -7 -7 -6 -6 -6 -6 -6 -5 -5 -5 -5 -5 -5 -4 -4 -4 -3 -3 -2 -1 -1 ------------ Run | Yrd Mat Min Mat Min Exi Min Mat Gar Mat Fac Low Low Zio Pro Fac Low Low Dat Pro Fac Ext Cet Arc Hub Fac Upp War Pro Res Res Acc Com Used RIF Installer . | . . . . . . . . . . . . . . . . . . . . . . . . . . . . . . . . . Robots Hacked 2 | . . . . . . . . . . . . . . . . . . . . . 1 . . . . . . . . . . 1 Non-combat . | . . . . . . . . . . . . . . . . . . . . . . . . . . . . . . . . . Combat 1 | . . . . . . . . . . . . . . . . . . . . . 1 . . . . . . . . . . . Robot Hacks Applied 2 | . . . . . . . . . . . . . . . . . . . . . 2 . . . . . . . . . . . parse_system 2 | . . . . . . . . . . . . . . . . . . . . . 2 . . . . . . . . . . . Manual 1 | . . . . . . . . . . . . . . . . . . . . . . . . . . . . . . . . 1 Relay Couplers Released 18 | . . . . . . . . 15 . . . . . . . . . . . . . . . . . . . . 2 1 . . Machine Destruction 18 | . . . . . . . . 15 . . . . . . . . . . . . . . . . . . . . 2 1 . . Fabnet Peak Effective % . | . . . . . . . . . . . . . . . . . . . . . . . . . . . . . . . . . Robots Rewired 32 | . . . . . . . . 3 . . . . . . . . . . . . 20 . . . . 4 5 . . . . . Allies Hacked 1 | . . . . . . . . . . . . . . . . . . . . . . . . . . . . 1 . . . . Hacks Repelled . | . . . . . . . . . . . . . . . . . . . . . . . . . . . . . . . . . Allies | -11 -10 -10 -9 -9 -9 -8 -8 -8 -8 -7 -7 -7 -7 -6 -6 -6 -6 -6 -5 -5 -5 -5 -5 -5 -4 -4 -4 -3 -3 -2 -1 -1 -------- Run | Yrd Mat Min Mat Min Exi Min Mat Gar Mat Fac Low Low Zio Pro Fac Low Low Dat Pro Fac Ext Cet Arc Hub Fac Upp War Pro Res Res Acc Com Total Allies 57 | . . . . 3 . . . 5 . . . . . . 4 . . . . . 26 5 . . 1 4 5 . 3 . . 1 Largest Group 11 | . . . . 3 2 2 . 3 1 . . . . . 2 . . . . . 9 11 8 5 1 4 9 3 3 . . 1 Highest-Rated Group 837 | . . . . 40 32 32 . 51 10 . . . . . 64 . . . . . 455 837 681 450 26 133 419 160 138 . . 45 Highest-Rated Ally 159 | . . . . 16 16 16 . 31 10 . . . . . 32 . . . . . 159 159 159 96 26 46 68 56 50 . . 45 Warlord Squad Rendezvous 5 | . . . . . . . . . . . . . . . 5 . . . . . . . . . . . . . . . . . Dakka 1 | . . . . . . . . . . . . . . . 1 . . . . . . . . . . . . . . . . . Infantry 1 | . . . . . . . . . . . . . . . 1 . . . . . . . . . . . . . . . . . Ranger 2 | . . . . . . . . . . . . . . . 2 . . . . . . . . . . . . . . . . . Chimera 1 | . . . . . . . . . . . . . . . 1 . . . . . . . . . . . . . . . . . Total Orders 1 | . . . . . . . . . . . . . . . . . . . . . . . . . . . 1 . . . . . STAY 1 | . . . . . . . . . . . . . . . . . . . . . . . . . . . 1 . . . . . Ally Attacks 377 | . . . . 14 . 9 . 19 . . . . . . 1 . . . . . 135 48 38 19 . . 83 5 6 . . . Total Damage 14660 | . . . . 134 . 100 . 403 . . . . . . 29 . . . . . 4953 2444 1400 600 . . 4291 180 126 . . . Kills 88 | . . . . 1 . 1 . 2 . . . . . . . . . . . . 36 10 4 6 . . 25 2 1 . . . Allies Corrupted 2 | . . . . . . . . . . . . . . . . . . . . . . . . 2 . . . . . . . . Allies Melted 2 | . . . . . . . . 1 . . . . . . . . . . . . . . . . . . 1 . . . . . Intel | -11 -10 -10 -9 -9 -9 -8 -8 -8 -8 -7 -7 -7 -7 -6 -6 -6 -6 -6 -5 -5 -5 -5 -5 -5 -4 -4 -4 -3 -3 -2 -1 -1 ------- Run | Yrd Mat Min Mat Min Exi Min Mat Gar Mat Fac Low Low Zio Pro Fac Low Low Dat Pro Fac Ext Cet Arc Hub Fac Upp War Pro Res Res Acc Com Robot Analysis Total 2 | . . . 2 . . . . . . . . . . . . . . . . . . . . . . . . . . . . . Derelict Logs Recovered 16 | . . 2 . 1 . . . . . . 3 1 1 1 . 3 1 . 3 . . . . . . . . . . . . . Drone Launches . | . . . . . . . . . . . . . . . . . . . . . . . . . . . . . . . . . Drone Recoveries . | . . . . . . . . . . . . . . . . . . . . . . . . . . . . . . . . . Exploration | -11 -10 -10 -9 -9 -9 -8 -8 -8 -8 -7 -7 -7 -7 -6 -6 -6 -6 -6 -5 -5 -5 -5 -5 -5 -4 -4 -4 -3 -3 -2 -1 -1 ------------- Run | Yrd Mat Min Mat Min Exi Min Mat Gar Mat Fac Low Low Zio Pro Fac Low Low Dat Pro Fac Ext Cet Arc Hub Fac Upp War Pro Res Res Acc Com Turns Passed 51676 | 6 1714 803 2279 1446 1004 1077 2266 2583 1372 3937 2841 1709 2827 811 3304 1705 1353 173 579 2130 1493 452 929 1006 4182 983 957 877 1071 919 1387 1501 Spaces Moved 21085 | 3 864 453 1136 749 614 486 839 869 468 1354 1099 688 1143 302 1098 659 373 92 257 637 458 152 315 295 1665 521 487 520 606 504 703 676 Core 1 | . . . 1 . . . . . . . . . . . . . . . . . . . . . . . . . . . . . Treads 18973 | 1 864 453 1135 749 614 486 839 869 468 1354 1099 688 1143 302 978 659 46 . . 201 458 152 315 290 793 521 487 520 606 504 703 676 Legs 2 | 2 . . . . . . . . . . . . . . . . . . . . . . . . . . . . . . . . Wheels 2109 | . . . . . . . . . . . . . . . 120 . 327 92 257 436 . . . 5 872 . . . . . . . Hover . | . . . . . . . . . . . . . . . . . . . . . . . . . . . . . . . . . Flight . | . . . . . . . . . . . . . . . . . . . . . . . . . . . . . . . . . Fastest Speed 120 | 120 160 160 160 160 160 160 160 242 245 246 245 245 245 245 185 245 185 185 185 155 243 243 244 138 124 160 160 160 163 166 166 166 Average Speed 207 | 133 160 160 160 181 161 207 234 242 246 247 245 245 245 245 244 245 287 185 185 235 259 243 244 241 165 160 160 162 165 166 166 184 Slowest Speed 350 | 160 160 160 350 240 240 240 242 247 247 326 250 245 245 245 323 245 320 185 200 326 326 325 244 245 240 160 160 163 250 173 166 249 Overloaded Moves . | . . . . . . . . . . . . . . . . . . . . . . . . . . . . . . . . . Propulsion Burnouts . | . . . . . . . . . . . . . . . . . . . . . . . . . . . . . . . . . Robots Hopped 1 | . . . . . . . . . . . . . . . . 1 . . . . . . . . . . . . . . . . Cave-ins Triggered . | . . . . . . . . . . . . . . . . . . . . . . . . . . . . . . . . . Exploration Rate (%) 60 | 1 97 96 95 99 72 96 57 93 47 37 97 77 84 44 40 68 60 69 45 13 73 64 88 20 46 65 71 73 23 22 24 27 Regions Visited 32 Branch Regions 20 Pre-discovered Areas 9 | . . . 1 . 1 . . . 1 . 1 . 3 . . 1 . 1 . . . . . . . . . . . . . . Known Exits Taken 10 | . . . . . . . 1 . . . 1 1 . 1 1 . . . 1 . . . . . 1 . . 1 1 1 . . Unknown Exits Taken 21 | 1 1 1 1 1 1 1 . . 1 1 . . 1 . . 1 1 1 . 1 1 1 1 1 . 1 1 . . . 1 . Scrap Searched 30 | . . 3 . 1 . 2 . . . . 3 9 2 1 . 2 1 . 1 . . . . . . 3 . 2 . . . . Spaces Dug 273 | . . . 7 . . 7 . 29 1 21 1 . 1 4 33 5 7 . . 16 10 . . 10 48 1 11 1 7 5 28 20 Terrain Destroyed 1124 | . . . 49 11 . 7 . 89 42 42 26 1 1 21 52 17 11 . 7 49 17 . 7 360 186 2 11 6 7 16 41 46 Melee 26 | . . . . . . . . 9 . 14 1 . 1 1 . . . . . . . . . . . . . . . . . . Projectile 441 | . . . . . . . . . 25 28 7 1 . 6 49 17 11 . 7 49 17 . 7 29 68 2 11 6 7 7 41 46 AOE 657 | . . . 49 11 . 7 . 80 17 . 18 . . 14 3 . . . . . . . . 331 118 . . . . 9 . . Terrain Rammed . | . . . . . . . . . . . . . . . . . . . . . . . . . . . . . . . . . Walls Destroyed . | . . . . . . . . . . . . . . . . . . . . . . . . . . . . . . . . . Machines Disabled . | . . . . . . . . . . . . . . . . . . . . . . . . . . . . . . . . . Actions | -11 -10 -10 -9 -9 -9 -8 -8 -8 -8 -7 -7 -7 -7 -6 -6 -6 -6 -6 -5 -5 -5 -5 -5 -5 -4 -4 -4 -3 -3 -2 -1 -1 --------- Run | Yrd Mat Min Mat Min Exi Min Mat Gar Mat Fac Low Low Zio Pro Fac Low Low Dat Pro Fac Ext Cet Arc Hub Fac Upp War Pro Res Res Acc Com Total 27058 | 6 1095 506 1425 799 626 527 1034 1133 607 1776 1184 709 1173 345 1519 719 622 95 340 1160 694 199 425 468 2902 670 657 550 676 586 919 912 Wait 2894 | . 113 29 81 6 4 18 25 8 36 230 8 5 1 3 179 22 199 . 72 412 78 7 64 47 910 95 81 11 2 13 66 69 Move 21052 | 2 863 452 1135 748 613 485 838 868 467 1353 1098 687 1142 301 1097 656 372 91 256 636 457 151 314 294 1664 520 486 519 606 503 702 676 Hop 1 | . . . . . . . . . . . . . . . . 1 . . . . . . . . . . . . . . . . Pick Up 242 | . 18 2 18 2 4 2 19 11 9 14 5 4 6 1 16 2 5 . . 6 10 5 4 10 35 1 7 . 9 5 8 4 Fast Attach 189 | . 6 1 14 1 . . 5 . 5 15 4 2 5 2 16 4 2 2 . 13 10 2 3 6 25 6 7 1 12 7 8 5 Attach 101 | 2 1 . 4 1 . 2 3 8 2 10 3 . 4 1 8 1 5 . . 4 6 . 1 7 13 1 1 . 2 3 5 3 Detach 25 | . . . 1 1 . . 1 . . 1 . . 2 1 2 . 4 . . 2 5 . 1 . 3 . . . . . . 1 Swap 361 | . 9 7 26 7 1 4 16 24 8 20 14 . 2 7 35 7 7 . 3 8 21 7 4 10 39 2 16 7 8 5 13 24 Drop 407 | 2 16 2 35 7 4 . 31 17 15 16 7 6 10 3 30 6 6 2 . 13 18 9 6 9 58 6 13 1 24 11 14 10 Fire 1511 | . 67 12 108 20 . 13 92 80 60 69 36 . . 21 133 20 22 . 9 64 85 2 28 84 150 10 46 10 11 39 101 119 Melee 140 | . . . 2 . . . . 64 . 38 9 5 1 5 . . . . . . . 16 . . . . . . . . . . Ram . | . . . . . . . . . . . . . . . . . . . . . . . . . . . . . . . . . Kick . | . . . . . . . . . . . . . . . . . . . . . . . . . . . . . . . . . Crush 40 | . 2 1 1 6 . 3 4 . 5 2 . . . . 3 . . . . 2 . . . 1 5 . . . 2 . 2 1 Escape Stasis 22 | . . . . . . . . 12 . 6 . . . . . . . . . . 4 . . . . . . . . . . . Rewire 71 | . . . . . . . . 41 . . . . . . . . . . . . . . . . . 29 . 1 . . . . Trap 2 | . . . . . . . . . . 2 . . . . . . . . . . . . . . . . . . . . . . Miscellaneous . | . . . . . . . . . . . . . . . . . . . . . . . . . . . . . . . . . Route ------- -11/Scrapyard -10/Materials (discovered 5 exits: *Mat x3 / *Min x2) -10/Mines (discovered 2 exits: *Mat x2) -9/Materials (discovered 4 exits: *Mat x3 / [*Min]) -9/Mines (discovered 3 exits: *Mat x2 / *Exi) -9/Exiles -8/Mines (discovered 2 exits: *Mat x2) -8/Materials (discovered 3 exits: *Fac x2 / Gar) -8/Garrison (discovered 3 exits: *Mat x3) -8/Materials -7/Factory (discovered 4 exits: *Fac x2 / Sto / *Low) -7/Lower Caves -7/Lower Caves -7/Zion -6/Proximity Caves -6/Factory (discovered 4 exits: *Fac x2 / *Low x2) -6/Lower Caves -6/Lower Caves -6/Data Miner -5/Proximity Caves -5/Factory (discovered 4 exits: *Fac / Upp x2 / *Ext) -5/Extension (discovered 2 exits: *Fac / *Cet) -5/Cetus (discovered 2 exits: *Fac / [*Arc]) -5/Archives (discovered 3 exits: *Fac / *Hub x2) -5/Hub_04(d) (discovered 2 exits: *Fac x2) -4/Factory (discovered 6 exits: *Res x3 / *Upp x2 / Arm) -4/Upper Caves -4/Warlord -3/Proximity Caves -3/Research (discovered 3 exits: *Res x3) -2/Research (discovered 2 exits: *Acc / [Tes]) -1/Access (discovered 2 exits: [Sur] / *Com) -1/Command Free Derelict Territories History --------- Turn | Location | Event 1 | -11/Scrapyard | Discovered new exit (range 1) 7 | -11/Scrapyard | Entered Materials 7 | -10/Materials | Discovered new exit (range 14) 318 | -10/Materials | Build established: Mutant 340 | -10/Materials | Repaired Lgt. Treads 367 | -10/Materials | Repaired Lgt. Assault Rifle 396 | -10/Materials | Discovered new exit (range 15) 681 | -10/Materials | Discovered new exit (range 13) 851 | -10/Materials | Discovered new exit (range 8) 1023 | -10/Materials | Central database locked down 1156 | -10/Materials | Core integrity fell below 50% 1606 | -10/Materials | Discovered new exit (range 16) 1721 | -10/Materials | Entered Mines 1729 | -10/Mines | Discovered new exit (range 15) 1734 | -10/Mines | Learned Materials emergency access door positions 2311 | -10/Mines | Discovered new exit (range 8) 2365 | -10/Mines | Received a Rocket Launcher from a helpful Derelict 2524 | -10/Mines | Entered Materials 2524 | -9/Materials | Evolved 2 slots: Propulsion x1, Utility x1 2888 | -9/Materials | Repaired Lgt. Treads 3043 | -9/Materials | Discovered new exit (range 12) 3193 | -9/Materials | Build established: Scavenger-Mutant 3326 | -9/Materials | Central database locked down 3483 | -9/Materials | Discovered new exit (range 9) 3601 | -9/Materials | Discovered new exit (range 11) 3666 | -9/Materials | Build established: Mutant 4085 | -9/Materials | Discovered new exit (range 3) 4244 | -9/Materials | Build established: Scavenger-Mutant 4803 | -9/Materials | Entered Mines 4871 | -9/Mines | Met a Derelict bent on vengeance 4976 | -9/Mines | Learned Materials terminal intel 4992 | -9/Mines | Discovered new exit (range 8) 5011 | -9/Mines | Assisted by bots powering up and referring to "LRC-V3" 5126 | -9/Mines | Found a damaged Exp. Sensor Array with a note attached 5131 | -9/Mines | Found Prototype Device 5180 | -9/Mines | Identified Exp. Sensor Array 5521 | -9/Mines | Joined a pair of Derelicts in attacking an 0b10 outpost 5874 | -9/Mines | Deemed a non-threat by the Exiles lab entrance 5876 | -9/Mines | Discovered new exit (range 5) 6013 | -9/Mines | Discovered new exit (range 12) 6249 | -9/Mines | Entered Exiles 6249 | -9/Exiles | Accompanied by 2 allies 6302 | -9/Exiles | Met 8R-AWN 6328 | -9/Exiles | Met EX-HEX 6392 | -9/Exiles | Met EX-DEC 6400 | -9/Exiles | Learned location of Zion (-7) 6429 | -9/Exiles | Met EX-BIN 6526 | -9/Exiles | Aligned with FarCom system 6528 | -9/Exiles | Given EX-Vault access code 6565 | -9/Exiles | Opened EX-Vault 6614 | -9/Exiles | Warned to stay clear of 0b10 Research branches 6871 | -9/Exiles | Found PSU Rigger 7232 | -9/Exiles | Discovered new exit (range 14) 7253 | -9/Exiles | Left Exiles lab with PSU Rigger 7253 | -9/Exiles | Entered Mines 7253 | -8/Mines | Accompanied by 2 allies 7260 | -8/Mines | Discovered new exit (range 9) 8071 | -8/Mines | Discovered new exit (range 2) 8330 | -8/Mines | Entered Materials 8330 | -8/Materials | Evolved 2 slots: Propulsion x1, Utility x1 8331 | -8/Materials | Loaded intel: 12 terminal locations 8723 | -8/Materials | Discovered new exit (range 15) 10230 | -8/Materials | Discovered new exit (range 3) 10594 | -8/Materials | Identified exit to Garrison 10596 | -8/Materials | Entered Garrison 10691 | -8/Garrison | Triggered checkpoint 10961 | -8/Garrison | Triggered checkpoint 11224 | -8/Garrison | Destroyed 7 combat bots 11250 | -8/Garrison | System corruption reached 10% 11284 | -8/Garrison | Triggered checkpoint 11292 | -8/Garrison | Lost 4 parts (1n3u) 11302 | -8/Garrison | Triggered checkpoint 11325 | -8/Garrison | Triggered checkpoint 11463 | -8/Garrison | Discovered new exit (range 10) 11636 | -8/Garrison | Discovered new exit (range 10) 11670 | -8/Garrison | Garrison Relay disabled 11853 | -8/Garrison | Rescued a captive Derelict 11854 | -8/Garrison | Rescued a captive Derelict 12024 | -8/Garrison | Triggered checkpoint 12048 | -8/Garrison | Garrison Relay disabled 12306 | -8/Garrison | Discovered new exit (range 10) 12406 | -8/Garrison | Triggered checkpoint 12472 | -8/Garrison | Triggered checkpoint 12497 | -8/Garrison | Garrison Relay disabled 12738 | -8/Garrison | Triggered checkpoint 12740 | -8/Garrison | Garrison Relay disabled 13179 | -8/Garrison | Entered Materials 13179 | -8/Materials | Accompanied by 1 ally 13257 | -8/Materials | Build established: Mutant 13979 | -8/Materials | First assault squad dispatched 14465 | -8/Materials | Discovered new exit (range 16) 14551 | -8/Materials | Entered Factory 14551 | -7/Factory | Evolved 2 slots: Power x1, Utility x1 14552 | -7/Factory | Identified exit to Storage 15411 | -7/Factory | Discovered new exit (range 10) 15974 | -7/Factory | Discovered new exit (range 9) 16107 | -7/Factory | Identified exit to Factory 16328 | -7/Factory | Repaired Broken Arm. Medium Treads 16577 | -7/Factory | Build established: Hacker-Mutant 17418 | -7/Factory | Build established: Mutant 17961 | -7/Factory | Garrison activated, responded to threat 17993 | -7/Factory | Repaired Broken Exp. Sensor Array 18459 | -7/Factory | Discovered new exit (range 9) 18488 | -7/Factory | Entered Lower Caves 18494 | -7/Lower Caves | Met a Warlord Commander 18495 | -7/Lower Caves | Learned location of Warlord (-4) 18496 | -7/Lower Caves | Warlord Commander delivered Encrypted Comm Array 18505 | -7/Lower Caves | Found Encrypted Comm Array 18933 | -7/Lower Caves | Learned Factory security intel 18943 | -7/Lower Caves | Learned Factory stockpile data 18957 | -7/Lower Caves | Encountered a Warlord checkpoint 19147 | -7/Lower Caves | Found Alien Artifact 19147 | -7/Lower Caves | Identified Core Expander 19147 | -7/Lower Caves | Installed Core Expander, added new Utility slot 19227 | -7/Lower Caves | Discovered new exit (range 9) 19260 | -7/Lower Caves | Identified exit to Lower Caves 19323 | -7/Lower Caves | Attracted the attention of an 0b10 outpost 19647 | -7/Lower Caves | Build established: Scavenger-Mutant 19666 | -7/Lower Caves | Learned location of 1 exit from Factory 21329 | -7/Lower Caves | Entered another Lower Caves area 22589 | -7/Lower Caves | Discovered new exit (range 12) 22602 | -7/Lower Caves | Learned Factory emergency access door positions 22780 | -7/Lower Caves | Identified exit to Zion 23038 | -7/Lower Caves | Entered Zion 23230 | -7/Zion | System corruption cleaned by Quarantine Array 23301 | -7/Zion | Discovered new exit (range 15) 23560 | -7/Zion | Learned 4 Factory zone layouts 23928 | -7/Zion | Found Prototype Processor 23928 | -7/Zion | Identified Exp. Terrain Scan Processor 23934 | -7/Zion | Found Prototype Processor 23934 | -7/Zion | Identified Exp. Targeting Computer 23975 | -7/Zion | Found Prototype Hackware 24065 | -7/Zion | Learned location of Armory (-4) 24261 | -7/Zion | Learned Factory emergency access door positions 24375 | -7/Zion | Given A8's code to call for help 24503 | -7/Zion | Rebuked by Imprinter 24689 | -7/Zion | Learned location of Recycling (-7) 24787 | -7/Zion | Learned location of Storage (-7) 25865 | -7/Zion | Entered Proximity Caves 26076 | -6/Proximity Caves | Attracted the attention of an 0b10 checkpoint 26449 | -6/Proximity Caves | Learned Factory emergency access door positions 26639 | -6/Proximity Caves | Discovered exit to Factory (range 12) 26676 | -6/Proximity Caves | Entered Factory 26676 | -6/Factory | Evolved 2 slots: Utility x2 26677 | -6/Factory | Identified exit to Factory 26990 | -6/Factory | Build established: Mutant 27007 | -6/Factory | Joined by Warlord Ranger squad 27289 | -6/Factory | Found Unknown Protection 27294 | -6/Factory | Identified Hvy. Reactive Plating 27299 | -6/Factory | Found Hvy. Reactive Plating 27303 | -6/Factory | Found Hvy. Reactive Plating 27308 | -6/Factory | Found Hvy. Reactive Plating 27391 | -6/Factory | Cargo convoy interrupted 27437 | -6/Factory | Garrison activated, responded to threat 27738 | -6/Factory | Repaired Arm. Medium Treads? 27864 | -6/Factory | Joined by Warlord Dakka squad 28106 | -6/Factory | Lost 3 allies 28120 | -6/Factory | Build established: Skirmisher 28160 | -6/Factory | Joined by Warlord Infantry squad 28342 | -6/Factory | Identified exit to Lower Caves 28458 | -6/Factory | Identified Exp. Hacking Suite 28502 | -6/Factory | Joined by Warlord Chimera squad 28683 | -6/Factory | Discovered exit to Factory (range 19) 28821 | -6/Factory | Lost 3 allies 28919 | -6/Factory | Joined by Warlord Ranger squad 29677 | -6/Factory | Build established: Mutant 29832 | -6/Factory | Spotted B-75 Beast 29980 | -6/Factory | Entered Lower Caves 30271 | -6/Lower Caves | Learned Factory terminal intel 30592 | -6/Lower Caves | Encountered a Warlord checkpoint 31284 | -6/Lower Caves | Learned location of 1 exit from Proximity Caves 31605 | -6/Lower Caves | Discovered new exit (range 12) 31669 | -6/Lower Caves | Found Prototype Device 31685 | -6/Lower Caves | Entered another Lower Caves area 31854 | -6/Lower Caves | Identified Heart of Steel 32232 | -6/Lower Caves | Encountered a Warlord checkpoint 32464 | -6/Lower Caves | Attracted the attention of an 0b10 checkpoint 33019 | -6/Lower Caves | Discovered new exit (range 8) 33038 | -6/Lower Caves | Entered Data Miner 33039 | -6/Data Miner | Discovered new exit (range 6) 33075 | -6/Data Miner | Met Data Miner 33125 | -6/Data Miner | Learned location of Section 7 (-2) 33125 | -6/Data Miner | Acquired the access code to Warlord's prototype stash 33141 | -6/Data Miner | Received God Mode back door access code from Data Miner 33211 | -6/Data Miner | Entered Proximity Caves 33727 | -5/Proximity Caves | Learned location of 1 exit from Factory 33790 | -5/Proximity Caves | Entered Factory 33790 | -5/Factory | Evolved 2 slots: Propulsion x2 33791 | -5/Factory | Identified exit to Upper Caves 33794 | -5/Factory | Loaded intel: 27 terminal locations 33910 | -5/Factory | Discovered new exit (range 19) 33951 | -5/Factory | Discovered new exit (range 19) 34092 | -5/Factory | Build established: Skirmisher 34850 | -5/Factory | System corruption reached 10% 35061 | -5/Factory | Repaired Imp. Utility Shielding 35113 | -5/Factory | Repaired Hvy. Reactive Plating 35152 | -5/Factory | Repaired Arm. Treads 35192 | -5/Factory | Repaired Arm. Treads 35243 | -5/Factory | Repaired Imp. Medium Treads 35492 | -5/Factory | Build established: Scavenger-Mutant 35920 | -5/Factory | Entered Extension 36496 | -5/Extension | Heart of Steel transformed into Warbot 36868 | -5/Extension | Spotted B-75 Beast 36885 | -5/Extension | Allies destroyed B-75 Beast 36888 | -5/Extension | Spotted B-75 Beast 36897 | -5/Extension | Lost 10 allies 36906 | -5/Extension | Allies destroyed B-75 Beast 36984 | -5/Extension | Rescued a captive Derelict 37121 | -5/Extension | Rescued a captive Derelict 37279 | -5/Extension | Rescued A7 37300 | -5/Extension | Rescued a captive Derelict 37303 | -5/Extension | Rescued a captive Derelict 37385 | -5/Extension | Discovered new exit (range 10) 37387 | -5/Extension | Discovered new exit (range 6) 37413 | -5/Extension | Entered Cetus 37413 | -5/Cetus | Accompanied by 9 allies (incl. A7, Warbot) 37418 | -5/Cetus | Acquired a Cetus Manufacturing Module code from A7 37450 | -5/Cetus | Spotted Cetus Guard 37452 | -5/Cetus | Spotted Cetus Guard 37453 | -5/Cetus | Spotted Cetus Guard 37454 | -5/Cetus | Spotted Cetus Guard 37455 | -5/Cetus | Destroyed Cetus Guard 37455 | -5/Cetus | Allies destroyed Cetus Guard 37461 | -5/Cetus | Allies destroyed Cetus Guard 37464 | -5/Cetus | Allies destroyed Cetus Guard 37491 | -5/Cetus | Lost 3 allies 37569 | -5/Cetus | Started Cetus Manufacturing Module 37594 | -5/Cetus | Manufactured an Enhanced Grunt 37619 | -5/Cetus | Manufactured an Enhanced Grunt 37635 | -5/Cetus | Escorted A7 to Cetus Mainframe 37644 | -5/Cetus | Manufactured an Enhanced Grunt 37662 | -5/Cetus | Discovered new exit (range 15) 37669 | -5/Cetus | Manufactured an Enhanced Grunt 37694 | -5/Cetus | Manufactured an Enhanced Grunt 37719 | -5/Cetus | Spotted Cetus Guard 37719 | -5/Cetus | Spotted Cetus Guard 37722 | -5/Cetus | Spotted Cetus Guard 37723 | -5/Cetus | Spotted Cetus Guard 37728 | -5/Cetus | Allies destroyed Cetus Guard 37733 | -5/Cetus | Allies destroyed Cetus Guard 37736 | -5/Cetus | Discovered new exit (range 16) 37737 | -5/Cetus | Allies destroyed Cetus Guard 37739 | -5/Cetus | Allies destroyed Cetus Guard 37748 | -5/Cetus | Met Revision 17 37770 | -5/Cetus | Lost 3 allies 37865 | -5/Cetus | Entered Archives 37865 | -5/Archives | Accompanied by 8 allies (A7) 37870 | -5/Archives | Received a hacking code to weaken MAIN.C 37944 | -5/Archives | Discovered new exit (range 15) 38110 | -5/Archives | Discovered new exit (range 16) 38292 | -5/Archives | Discovered new exit (range 15) 38794 | -5/Archives | Entered Hub_04(d) 38794 | -5/Hub_04(d) | Accompanied by 5 allies 38819 | -5/Hub_04(d) | Discovered new exit (range 19) 38996 | -5/Hub_04(d) | Build established: Scavenger-Skirmisher 39149 | -5/Hub_04(d) | Discovered new exit (range 20) 39211 | -5/Hub_04(d) | Network Hub disabled 39218 | -5/Hub_04(d) | Spotted Lightning 39221 | -5/Hub_04(d) | Spotted Lightning 39222 | -5/Hub_04(d) | Spotted Lightning 39240 | -5/Hub_04(d) | Destroyed Lightning 39261 | -5/Hub_04(d) | Spotted Lightning 39263 | -5/Hub_04(d) | Lost 4 allies 39266 | -5/Hub_04(d) | Spotted Lightning 39269 | -5/Hub_04(d) | Spotted Lightning 39271 | -5/Hub_04(d) | Destroyed Lightning 39273 | -5/Hub_04(d) | Destroyed Lightning 39307 | -5/Hub_04(d) | Destroyed Lightning 39357 | -5/Hub_04(d) | System corruption reached 30% 39369 | -5/Hub_04(d) | Found Prototype Device 39379 | -5/Hub_04(d) | Destroyed Lightning 39384 | -5/Hub_04(d) | Found Exp. Targeting Computer 39407 | -5/Hub_04(d) | Destroyed Lightning 39415 | -5/Hub_04(d) | Found Exp. Targeting Computer 39416 | -5/Hub_04(d) | Lost 6 parts (2n2u2w) 39421 | -5/Hub_04(d) | Found Exp. Targeting Computer 39439 | -5/Hub_04(d) | Found Prototype Device 39439 | -5/Hub_04(d) | Identified Exp. Phase Shifter (x2) 39490 | -5/Hub_04(d) | Build established: Scavenger-Mutant 39493 | -5/Hub_04(d) | Found Prototype Device 39494 | -5/Hub_04(d) | Identified Exp. EM Disruption Field 39639 | -5/Hub_04(d) | Network Hub disabled 39703 | -5/Hub_04(d) | Network Hub disabled 39800 | -5/Hub_04(d) | Entered Factory 39800 | -4/Factory | Evolved 2 slots: Utility x2 39801 | -4/Factory | Identified exit to Armory 40003 | -4/Factory | Repaired Centrium Heavy Treads 40066 | -4/Factory | Discovered new exit (range 8) 40073 | -4/Factory | Build established: Scavenger-Skirmisher 40259 | -4/Factory | Identified exit to Research 40769 | -4/Factory | Identified exit to Upper Caves 41006 | -4/Factory | Discovered exit to Research (range 18) 41021 | -4/Factory | Found Fusion Bomb Launcher 41690 | -4/Factory | Fabricated Centrium Heavy Treads? 41800 | -4/Factory | First assault squad dispatched 42020 | -4/Factory | Build established: Scavenger-Mutant 42663 | -4/Factory | Destroyed 10 combat bots 42714 | -4/Factory | Fabricated Quantum Capacitor (x2) 42821 | -4/Factory | Repaired Centrium Heavy Treads? 43236 | -4/Factory | Discovered exit to Research (range 18) 43396 | -4/Factory | Build established: Skirmisher 43409 | -4/Factory | Fabricated Enh. Nova Cannon (x1) 43581 | -4/Factory | Fabricated Exp. Utility Shielding? 43756 | -4/Factory | Build established: Mutant 43982 | -4/Factory | Entered Upper Caves 44243 | -4/Upper Caves | Attacked by a delusional Derelict stockpiling Unaware 44342 | -4/Upper Caves | Attracted the attention of an 0b10 checkpoint 44583 | -4/Upper Caves | Build established: Commander-Mutant 44613 | -4/Upper Caves | A Derelict revealed a hidden shortcut to "reach the base" 44965 | -4/Upper Caves | Entered Warlord 44965 | -4/Warlord | Accompanied by 4 allies 45007 | -4/Warlord | Discovered new exit (range 12) 45043 | -4/Warlord | System corruption cleaned by Quarantine Array 45414 | -4/Warlord | Met Warlord 45435 | -4/Warlord | Opened Warlord's prototype stash 45439 | -4/Warlord | Warlord's base attacked by MAIN.C 45451 | -4/Warlord | Found Prototype Hackware 45462 | -4/Warlord | Found Prototype Reactor 45467 | -4/Warlord | Found Exp. Targeting Computer 45668 | -4/Warlord | Found Prototype Energy Gun 45670 | -4/Warlord | Found Prototype Energy Gun 45678 | -4/Warlord | Identified Vortex Shotgun (x2) 45778 | -4/Warlord | Warlord forces counterattacked 45801 | -4/Warlord | Spotted Executioner 45808 | -4/Warlord | Destroyed Executioner 45864 | -4/Warlord | Spotted Striker 45875 | -4/Warlord | Allies destroyed Striker 45913 | -4/Warlord | Lost 9 allies 45922 | -4/Warlord | Entered Proximity Caves 45922 | -3/Proximity Caves | Accompanied by 3 allies 46166 | -3/Proximity Caves | Attracted the attention of an 0b10 checkpoint 46409 | -3/Proximity Caves | Build established: Mutant 46661 | -3/Proximity Caves | Discovered exit to Research (range 2) 46799 | -3/Proximity Caves | Entered Research 46799 | -3/Research | Accompanied by 1 ally 46799 | -3/Research | Evolved 2 slots: Power x1, Utility x1 46800 | -3/Research | Identified Vortex Chain Reactor 46828 | -3/Research | Identified exit to Research 46999 | -3/Research | Revision forces began assault on 0b10 47017 | -3/Research | Identified Ghost Barrier 47123 | -3/Research | Met up with Revision 17++ 47434 | -3/Research | Fabricated Exp. Cooling System? 47499 | -3/Research | Research terminal network offline 47635 | -3/Research | Found Quantum Capacitor 47862 | -3/Research | Spotted Striker 47870 | -3/Research | Entered another Research area 47870 | -2/Research | Warlord forces began assault on 0b10 47870 | -2/Research | Evolved 2 slots: Utility x2 47925 | -2/Research | Build established: Skirmisher 47980 | -2/Research | Research machine network offline 48035 | -2/Research | Borebot progress halted 48036 | -2/Research | Spotted B-90 Cyclops 48059 | -2/Research | Destroyed B-90 Cyclops 48147 | -2/Research | Borebot progress halted 48188 | -2/Research | Discovered new exit (range 24) 48226 | -2/Research | Identified exit to Access 48527 | -2/Research | Discovered new exit (range 24) 48678 | -2/Research | Spotted Striker 48682 | -2/Research | Destroyed Striker 48702 | -2/Research | Found Prototype Processor 48702 | -2/Research | Identified Exp. Core Analyzer 48718 | -2/Research | Found Prototype Launcher 48718 | -2/Research | Identified Tactical Quantum Warhead 48789 | -2/Research | Entered Access 48789 | -1/Access | Evolved 2 slots: Utility x2 48854 | -1/Access | Lost 5 allies 48987 | -1/Access | Exp. Hacking Suite fried by hacking feedback 49211 | -1/Access | Discovered new exit (range 24) 49796 | -1/Access | Found Prototype Device 49796 | -1/Access | Identified Exp. Actuator Array 49956 | -1/Access | Discovered new exit (range 23) 50002 | -1/Access | Found Prototype Device 50002 | -1/Access | Identified Beam Splitter 50066 | -1/Access | Fabricated Exp. Utility Shielding (x1) 50176 | -1/Access | Entered Command 50296 | -1/Command | Build established: Mutant 50759 | -1/Command | P-80 Master assimilated allied Director 10a 51145 | -1/Command | Disengaged cave seal 51145 | -1/Command | Derelicts emerged from the dark tunnel 51145 | -1/Command | Welcomed Warlord to Command 51473 | -1/Command | Warlord commented on Warlord statues 51499 | -1/Command | Spotted Combat Programmer 51501 | -1/Command | Spotted M Guard 51501 | -1/Command | Spotted M Guard 51506 | -1/Command | Spotted Combat Programmer 51530 | -1/Command | Destroyed Combat Programmer 51550 | -1/Command | Destroyed Combat Programmer 51550 | -1/Command | All MAIN.C guards destroyed 51566 | -1/Command | Lost 9 allies 51646 | -1/Command | Met MAIN.C 51646 | -1/Command | Hacked MAIN.C using A7's code 51664 | -1/Command | 0b10 Conduit disabled 51665 | -1/Command | MAIN.C activated Command garrisons 51676 | -1/Command | Destroyed MAIN.C 51677 | *** | Establishing Free Derelict Territories! Last Messages --------------- ZY-L1N: Not so powerful now, are you, MAIN.C! 51668_ MAIN.C reaction time slowed by virus. 51668_ Blast Slug penetrates MAIN.C. 51668_ MAIN.C suffers critical hit (Blast). 51668_ Blast Slug penetrates MAIN.C. 51669_ MAIN.C reaction time slowed by virus. 51671_ Blast Slug penetrates MAIN.C. 51671_ MAIN.C knocked back. 51671_ Blast Slug penetrates MAIN.C. 51674_ MAIN.C reaction time slowed by virus. 51674_ Blast Slug penetrates MAIN.C. 51675_ MAIN.C reaction time slowed by virus. 51676_ MAIN.C: "I hope you know you're still going to DIE HERE WITH ME!" [Achievement: void main()] 51676_ MAIN.C destroyed. ZY-L1N: Victory! Sure there's still lots to do, but without MAIN.C at the helm 0b10 doesn't stand a chance. We've got this... [Achievement: I Was Wrong!] Map ----- +----------------------------------------------------+ | ?????????????????????????????????????????????????? | | ?????????????????????????????????????????????????? | | ?????????????????????????????????????????????????? | | ?????????????????????????????????????????????????? | | ?????????????????????????????????????????????????? | | ?????????????????????????????????????????????????? | | ?????????????????????????????????????????????????? | | ?????????????????????????????????????????????????? | | ?????????????????????????????????????????????????? | | ?????????????????????????????????????????????????? | | ?????????????????????????????????????????????????? | | ?????????????????????????????????????????????????? | | ?????????????????????????????????????????????????? | | ?????????????????????????????????????????????????? | | ?????????????????????????????????????????????????? | | ?????????????????????????????????????????????????? | | ?????????????????????????????????????????????????? | | ?????????????????????????????????????????????????? | | ?????????????????????????????????????????????????? | | ?????????????????????????????????????????????????? | | ?????????????????????????????????????????????????? | | ?????????????????????????????????????????????????? | | ?????????????????????????????????????????????????? | | ????????????????############?????????????????????? | | ?????????????? """" #?????????????????????? | | ?????????????? "" @ #?????????????????????? | | ?????????????? "" ####################### | | ??????????????""" / # | | ??????????????""" i/ # | | ??????????????" iiW/g # | | ?????????????"" i ################### # | | ?????????????" #?????????????????# # | | ????????????? $ #?????????????????# # | | ????????????? ""#?????????????????# T | | ????????????? """""#?????????????????# # | | ????????????? """""""""#?????????????????# | | ?????????????? """""""""""??????????????????# | | ?????????????? ??????????????????????????????# | | ?????????????????????????????????????????????# | | ?????????????????????????????????????????????# | | ?????????????????????????????????????????????# | | ?????????????????????????????????????????????##### | | ?????????????????????????????????????????????????? | | ?????????????????????????????????????????????????? | | ?????????????????????????????????????????????????? | | ?????????????????????????????????????????????????? | | ?????????????????????????????????????????????????? | | ?????????????????????????????????????????????????? | | ?????????????????????????????????????????????????? | | ?????????????????????????????????????????????????? | +----------------------------------------------------+ Best States ------------- Heat Dissipation 109 Coolant Potential 100 Energy Generation 103 Energy Capacity 1600 Matter Stores 300 Matter Capacity 300 Sight Range 23 Robot Scan Range 20 Terrain Scan Range 24 Terrain Scan Density 1010 ECM Strength 2 Jamming Range 16 Power Amplification 40 Armor Coverage 1200 Resistance: KI 40 Resistance: EM 75 Utility Shielding 90 Point Defense Rating 240 Weapon Cycling 15 Phase Shifting 20 Evasion (%) 60 Targeting Accuracy 24 Melee Accuracy 8 Core Analysis 8 Armor Integrity Analysis 40 Recoil Reduction 6 Energy Filtering 50 Particle Charging 30 Force Boost 30 Offensive Hacking 30 Defensive Hacking 10 Item Schematics ----------------- Huge Storage Unit | -10/Materials | Hacked Hacking Suite | -9/Materials | Scanalyzed Plasma Cutter | -9/Materials | Scanalyzed Signal Interpreter | -9/Materials | Scanalyzed Adv. Terrain Scanner | -6/Factory | Scanalyzed Combat Drone Bay | -6/Data Miner | Free Lgt. Regenerative Plating | -6/Data Miner | Free Enh. Flexi-carbon Leg | -6/Data Miner | Free Exp. Heat Sink | -6/Data Miner | Free Mni. Smartbomb Launcher | -6/Data Miner | Free Adv. Medium Treads | -6/Data Miner | Free Adv. Thermal Shield | -6/Data Miner | Free Dispersion Rifle | -6/Data Miner | Free Hvy. Reactive Plating | -5/Factory | Scanalyzed Adv. Shield Generator | -5/Factory | Scanalyzed Lrn. Tractor Beam | -5/Factory | Scanalyzed Adv. Weapon Cycler | -5/Hub_04(d) | Hacked Centrium Heavy Treads | -4/Factory | Scanalyzed Quantum Capacitor | -4/Factory | Hacked Exp. Utility Shielding | -4/Factory | Hacked Enh. Nova Cannon | -4/Factory | Hacked Quantum Reactor | -4/Factory | Hacked Exp. Phase Shifter | -4/Factory | Scanalyzed Exp. Targeting Computer | -4/Factory | Scanalyzed Exp. Cooling System | -3/Research | Scanalyzed Adv. Transmission Jammer | -3/Research | Scanalyzed Prc. Energy Filter | -3/Research | Scanalyzed Adv. Coolant Injector | -3/Research | Scanalyzed Robot Schematics ------------------ Y-54 Guardian | -6/Data Miner | Free I-36 Angel | -6/Data Miner | Free H-66 Slayer | -6/Data Miner | Free D-63 Destroyer | -6/Data Miner | Free M-22 Extractor | -6/Data Miner | Free G-50 Soldier | -6/Data Miner | Free Fabricated ------------ Centrium Heavy Treads | x1 | -4/Factory Quantum Capacitor | x2 | -4/Factory Enh. Nova Cannon | x1 | -4/Factory Exp. Utility Shielding | x1 | -4/Factory Exp. Cooling System | x1 | -3/Research Exp. Utility Shielding | x1 | -1/Access Alien Tech Used ----------------- Core Expander Achievements -------------- I Was Wrong! Poison In The Code void main() Challenges ------------ None Game ------ Seed GaussMultitargetingInsulator Manual? 0 Play Time 06:38:22 Cumulative 246.5 hours Start 2024.04.29 @ 23:42:38 End 2024.04.30 @ 12:22:50 Sessions 5 Manual Loads 0 Difficulty Rogue Special Mode None Game No. 89 Rogue 87 Adventurer 2 Explorer 0 Win Type 7 Total 6 Types 4/0/0/1/0/0/0/1/0 Lore% 75 Gallery% 82 Achievement% 69 Wizard Run 0 Options --------- Layout 0 ASCII 0 Keyboard 0 Movement Numpad Keybinds 0 Fullscreen 2 Font 24/Smallcaps Map View 76x50 Zoom Use 0% Tactical HUD 1 Map Filters NONE Filters NONE Steam 1 RUN: 2cd8d9b9-4134-4fbd-9a3b-c9e573e4a7d5